Department,Entity,Transaction Date,Expense Type,Expense Area,Supplier Name,Transaction number,Amount,Invoice Description
DFID,DFID,03/08/2020,Air fares,"Humanitarian, Security and Migration Division",Corporate Provider,100049-102,830.52,
DFID,DFID,13/08/2020,Hardware -monitors,West and Southern Africa,Foreign & Commonwealth Office,100068-101,675.84,
DFID,DFID,13/08/2020,Hardware -monitors,West and Southern Africa,Foreign & Commonwealth Office,100068-101,"1,126.39",
DFID,DFID,13/08/2020,Hardware -monitors,West and Southern Africa,Foreign & Commonwealth Office,100068-101,"1,786.69",
DFID,DFID,13/08/2020,Hardware -monitors,West and Southern Africa,Foreign & Commonwealth Office,100068-101,"20,725.55",
DFID,DFID,03/08/2020,Air fares,"Asia, Caribbean and Overseas Territories",Corporate Provider,100084-101,811.82,
DFID,DFID,03/08/2020,Air fares,International Relations Division,Corporate Provider,100111-101,594.12,
DFID,DFID,03/08/2020,Air fares,International Relations Division,Corporate Provider,100111-101,740.32,
DFID,DFID,24/08/2020,"Conferences, Seminars & Meeting/Event Resource",Economic Development Division,Foreign & Commonwealth Office,100124-101,614.90,
DFID,DFID,24/08/2020,Mobile telephones & accessories,West and Southern Africa,Foreign & Commonwealth Office,100144-101,"2,455.07",
DFID,DFID,11/08/2020,Data network- remote working,West and Southern Africa,Foreign & Commonwealth Office,100254-101,579.93,
DFID,DFID,11/08/2020,Data network- remote working,West and Southern Africa,Foreign & Commonwealth Office,100254-101,"1,354.85",
DFID,DFID,03/08/2020,Air fares,Central Department Division,Corporate Provider,100279-104,"1,444.20",
DFID,DFID,03/08/2020,Hotels - Accommodation only,Central Department Division,Corporate Provider,100279-104,"1,612.00",
DFID,DFID,03/08/2020,Air fares,Central Department Division,Corporate Provider,100279-104,586.50,
DFID,DFID,03/08/2020,Air fares,Central Department Division,Corporate Provider,100279-104,586.50,
DFID,DFID,11/08/2020,Other passenger transport,"Asia, Caribbean and Overseas Territories",Foreign & Commonwealth Office,101601-110,"1,834.04",
DFID,DFID,13/08/2020,Telephone Usage & services,"Asia, Caribbean and Overseas Territories",Foreign & Commonwealth Office,101601-110,775.12,
DFID,DFID,03/08/2020,Air fares,"Asia, Caribbean and Overseas Territories",Corporate Provider,101603-103,881.24,
DFID,DFID,03/08/2020,Air fares,"Asia, Caribbean and Overseas Territories",Corporate Provider,101603-103,"1,315.05",
DFID,DFID,24/08/2020,Air fares,"Asia, Caribbean and Overseas Territories",Foreign & Commonwealth Office,101605-101,"1,039.03",
DFID,DFID,24/08/2020,Air fares,"Asia, Caribbean and Overseas Territories",Foreign & Commonwealth Office,101605-101,"1,097.31",
DFID,DFID,24/08/2020,Air fares,"Asia, Caribbean and Overseas Territories",Foreign & Commonwealth Office,101605-101,925.07,
DFID,DFID,24/08/2020,Telephone Usage & services,West and Southern Africa,Foreign & Commonwealth Office,101610-101,"3,147.29",
DFID,DFID,03/08/2020,Hotels - Accommodation only,West and Southern Africa,Corporate Provider,101610-101,560.94,
DFID,DFID,03/08/2020,Air fares,West and Southern Africa,Corporate Provider,101610-101,939.50,
DFID,DFID,03/08/2020,Air fares,West and Southern Africa,Corporate Provider,101610-101,847.67,
DFID,DFID,03/08/2020,Air fares,West and Southern Africa,Corporate Provider,101610-103,816.81,
DFID,DFID,24/08/2020,Medical/Health Services,East and Central Africa,Foreign & Commonwealth Office,101612-101,890.97,
DFID,DFID,13/08/2020,Air fares,West and Southern Africa,Foreign & Commonwealth Office,101613-101,680.09,
DFID,DFID,11/08/2020,Telephone Usage & services,West and Southern Africa,Foreign & Commonwealth Office,101620-101,"1,962.44",
DFID,DFID,13/08/2020,Telephone Usage & services,West and Southern Africa,Foreign & Commonwealth Office,101620-101,"1,962.43",
DFID,DFID,13/08/2020,Telephone Usage & services,West and Southern Africa,Foreign & Commonwealth Office,101620-101,"1,962.43",
DFID,DFID,13/08/2020,Telephone Usage & services,West and Southern Africa,Foreign & Commonwealth Office,101620-101,"1,241.06",
DFID,DFID,13/08/2020,Telephone Usage & services,West and Southern Africa,Foreign & Commonwealth Office,101620-101,"1,241.06",
DFID,DFID,13/08/2020,Telephone Usage & services,West and Southern Africa,Foreign & Commonwealth Office,101620-101,"1,198.33",
DFID,DFID,03/08/2020,Air fares,West and Southern Africa,Corporate Provider,101620-101,"1,124.70",
DFID,DFID,03/08/2020,Air fares,West and Southern Africa,Corporate Provider,101620-101,897.50,
DFID,DFID,03/08/2020,Air fares,West and Southern Africa,Corporate Provider,101620-101,972.30,
DFID,DFID,11/08/2020,Telephone Usage & services,"Asia, Caribbean and Overseas Territories",Foreign & Commonwealth Office,101621-101,955.67,
DFID,DFID,13/08/2020,Office Supplies,"Asia, Caribbean and Overseas Territories",Foreign & Commonwealth Office,101621-101,"2,202.96",
DFID,DFID,03/08/2020,Air fares,West and Southern Africa,Corporate Provider,101629-101,533.75,
DFID,DFID,03/08/2020,Air fares,West and Southern Africa,Corporate Provider,101629-101,"1,278.63",
DFID,DFID,03/08/2020,Air fares,West and Southern Africa,Corporate Provider,101629-101,747.97,
DFID,DFID,03/08/2020,Air fares,West and Southern Africa,Corporate Provider,101629-101,"1,525.87",
DFID,DFID,03/08/2020,Hotels - Accommodation only,West and Southern Africa,Supplier Name withheld,101622-106,"4,330.00",
DFID,DFID,31/08/2020,Other Professional Development,West and Southern Africa,Project Management Institute,101622-106,651.37,
DFID,DFID,24/08/2020,Telephone Usage & services,"Asia, Caribbean and Overseas Territories",Foreign & Commonwealth Office,101624-101,816.57,
DFID,DFID,03/08/2020,Air fares,East and Central Africa,Corporate Provider,101633-101,773.30,
DFID,DFID,03/08/2020,Air fares,East and Central Africa,Corporate Provider,101634-101,"1,006.16",
DFID,DFID,24/08/2020,Telephone Usage & services,East and Central Africa,Foreign & Commonwealth Office,101634-101,"2,563.73",
DFID,DFID,11/08/2020,Telephone Usage & services,East and Central Africa,Foreign & Commonwealth Office,101634-101,"3,126.20",
DFID,DFID,11/08/2020,Telephone Usage & services,East and Central Africa,Foreign & Commonwealth Office,101635-101,989.31,
DFID,DFID,03/08/2020,Air fares,West and Southern Africa,Corporate Provider,101637-101,906.55,
DFID,DFID,03/08/2020,Air fares,West and Southern Africa,Corporate Provider,101638-101,619.55,
DFID,DFID,03/08/2020,Air fares,West and Southern Africa,Corporate Provider,101638-101,619.45,
DFID,DFID,03/08/2020,Air fares,West and Southern Africa,Corporate Provider,101638-101,"1,820.55",
DFID,DFID,03/08/2020,Air fares,West and Southern Africa,Corporate Provider,101638-101,557.80,
DFID,DFID,03/08/2020,Air fares,West and Southern Africa,Corporate Provider,101638-101,604.85,
DFID,DFID,03/08/2020,Air fares,West and Southern Africa,Corporate Provider,101638-101,"1,820.55",
DFID,DFID,03/08/2020,Air fares,West and Southern Africa,Corporate Provider,101638-101,671.65,
DFID,DFID,03/08/2020,Air fares,West and Southern Africa,Corporate Provider,101638-101,530.86,
DFID,DFID,03/08/2020,Air fares,West and Southern Africa,Corporate Provider,101638-101,619.85,
DFID,DFID,03/08/2020,Air fares,West and Southern Africa,Corporate Provider,101638-101,619.85,
DFID,DFID,03/08/2020,Air fares,West and Southern Africa,Corporate Provider,101638-101,619.85,
DFID,DFID,31/08/2020,Subscriptions,Business Solutions Division Level,Leadership,200001-101,"2,105.19",
DFID,DFID,31/08/2020,Training - Course Fees,Business Solutions Division Level,EB Scaling,200001-101,595.00,
DFID,DFID,31/08/2020,Training - Course Fees,Business Solutions Division Level,EB Scaling,200001-101,595.00,
DFID,DFID,04/08/2020,Data Network - land lines,Business Solutions Division Level,Foreign & Commonwealth Office,200002-121,574.67,
DFID,DFID,14/08/2020,Data Network - land lines,Business Solutions Division Level,Foreign & Commonwealth Office,200002-121,540.60,
DFID,DFID,31/08/2020,Computer Consumables - Cds/memory/accessories,Business Solutions Division Level,CDW Ltd,200002-153,"1,178.40",
DFID,DFID,31/08/2020,Computer Software Licenses,Business Solutions Division Level,Freedom Of Speech,200002-154,"1,944.00",
DFID,DFID,11/08/2020,Hardware -monitors,Business Solutions Division Level,Foreign & Commonwealth Office,200005-165,"5,750.89",
DFID,DFID,03/08/2020,Air fares,Middle East and North Africa Division,Corporate Provider,201701-101,952.62,
DFID,DFID,03/08/2020,Air fares,Research and Evidence Division,Corporate Provider,202348-103,589.52,
DFID,DFID,03/08/2020,Air fares,Economic Development Division,Corporate Provider,202373-101,"1,148.04",
DFID,DFID,03/08/2020,Hotels - Accommodation only,"Asia, Caribbean and Overseas Territories",Corporate Provider,202403-101,"2,964.00",
DFID,DFID,03/08/2020,Air fares,Policy Division,Corporate Provider,202419-101,744.11,
DFID,DFID,03/08/2020,Air fares,Economic Development Division,Corporate Provider,202432-101,522.12,
DFID,DFID,03/08/2020,Air fares,East and Central Africa,Corporate Provider,202594-101,"1,372.25",
DFID,DFID,03/08/2020,Air fares,East and Central Africa,Corporate Provider,202594-101,666.70,
DFID,DFID,13/08/2020,Medical/Health Services,East and Central Africa,Foreign & Commonwealth Office,202594-101,"31,073.52",Medical/Health Services
DFID,DFID,24/08/2020,Telephone Usage & services,East and Central Africa,Foreign & Commonwealth Office,202594-101,591.32,
DFID,DFID,11/08/2020,Medical/Health Services,East and Central Africa,Foreign & Commonwealth Office,202594-101,"31,073.52",Medical/Health Services
DFID,DFID,04/08/2020,Data Network - land lines,Business Solutions Division Level,Foreign & Commonwealth Office,203329-102,"1,340.88",
DFID,DFID,24/08/2020,Hardware - networking equipment,Business Solutions Division Level,Foreign & Commonwealth Office,203329-102,714.31,
DFID,DFID,24/08/2020,Data Network - land lines,Business Solutions Division Level,Foreign & Commonwealth Office,203329-102,"1,101.81",
DFID,DFID,24/08/2020,Data Network - land lines,Business Solutions Division Level,Foreign & Commonwealth Office,203329-102,"1,047.85",
DFID,DFID,24/08/2020,Data Network - land lines,Business Solutions Division Level,Foreign & Commonwealth Office,203329-102,"1,266.85",
DFID,DFID,14/08/2020,Data Network - land lines,Business Solutions Division Level,Foreign & Commonwealth Office,203329-102,"1,261.41",
DFID,DFID,13/08/2020,Data Network - land lines,Business Solutions Division Level,Foreign & Commonwealth Office,203329-102,912.51,
DFID,DFID,13/08/2020,Data Network - land lines,Business Solutions Division Level,Foreign & Commonwealth Office,203329-102,605.53,
DFID,DFID,13/08/2020,Data Network - land lines,Business Solutions Division Level,Foreign & Commonwealth Office,203329-102,"2,138.07",
DFID,DFID,11/08/2020,Data Network - land lines,Business Solutions Division Level,Foreign & Commonwealth Office,203329-102,"2,178.68",
DFID,DFID,24/08/2020,Secure Staff Accommodation,"Asia, Caribbean and Overseas Territories",Foreign & Commonwealth Office,203427-112,"3,813.25",
DFID,DFID,31/08/2020,Training - Course Fees,Internal Audit,BOND,203914-101,567.00,
DFID,DFID,31/08/2020,Training - Course Fees,Internal Audit,BOND,203914-101,567.00,
DFID,DFID,31/08/2020,Other Professional Development,Internal Audit,Southampton Data Science Academy,203914-101,"1,000.00",
DFID,DFID,11/08/2020,Project delivery costs – supplier services,West and Southern Africa,Foreign & Commonwealth Office,204439-103,"1,114.30",
DFID,DFID,13/08/2020,Project delivery costs – supplier services,West and Southern Africa,Foreign & Commonwealth Office,204640-113,"2,607.16",
DFID,DFID,03/08/2020,Air fares,Policy Division,Corporate Provider,204766-105,502.20,
DFID,DFID,03/08/2020,Air fares,Middle East and North Africa Division,Corporate Provider,204981-101,505.50,
DFID,DFID,03/08/2020,Air fares,Middle East and North Africa Division,Corporate Provider,204981-101,"2,571.40",
DFID,DFID,13/08/2020,Hotels - Accommodation only,West and Southern Africa,Foreign & Commonwealth Office,205058-103,"1,203.45",
DFID,DFID,11/08/2020,Project delivery costs – supplier services,Economic Development Division,Foreign & Commonwealth Office,205181-108,753.23,
DFID,DFID,11/08/2020,Project delivery costs – supplier services,Economic Development Division,Foreign & Commonwealth Office,205181-108,"3,381.20",
DFID,DFID,24/08/2020,Project delivery costs – supplier services,Economic Development Division,Foreign & Commonwealth Office,205181-108,741.05,
DFID,DFID,03/08/2020,Hotels - Accommodation only,"Humanitarian, Security and Migration Division",Corporate Provider,205279-102,949.51,
DFID,DFID,13/08/2020,Telephone Usage & services,Middle East and North Africa Division,Foreign & Commonwealth Office,300078-101,567.71,
DFID,DFID,13/08/2020,Project delivery costs – supplier services,"Asia, Caribbean and Overseas Territories",Foreign & Commonwealth Office,300186-102,"1,741.41",
DFID,DFID,13/08/2020,Project delivery costs – supplier services,"Asia, Caribbean and Overseas Territories",Foreign & Commonwealth Office,300186-102,"1,498.59",
DFID,DFID,13/08/2020,Project delivery costs – supplier services,"Asia, Caribbean and Overseas Territories",Foreign & Commonwealth Office,300186-102,"1,484.89",
DFID,DFID,13/08/2020,Project delivery costs – supplier services,"Asia, Caribbean and Overseas Territories",Foreign & Commonwealth Office,300186-102,"1,721.22",
DFID,DFID,24/08/2020,Project delivery costs – supplier services,"Asia, Caribbean and Overseas Territories",Foreign & Commonwealth Office,300186-102,"1,429.02",
DFID,DFID,03/08/2020,Air fares,Economic Development Division,Corporate Provider,300663-101,728.62,
DFID,DFID,03/08/2020,Air fares,West and Southern Africa,Corporate Provider,300782-101,"1,045.87",
DFID,DFID,03/08/2020,Air fares,West and Southern Africa,Corporate Provider,300782-101,"2,228.07",
DFID,DFID,11/08/2020,Data Network -Satellite Communication,Business Solutions Division Level,Foreign & Commonwealth Office,300782-101,"3,326.09",
DFID,DFID,13/08/2020,Project delivery costs – supplier services,"Asia, Caribbean and Overseas Territories",Foreign & Commonwealth Office,301012-101,"46,074.36",
DFID,DFID,13/08/2020,"Repairs, Maintenance and Alterations – Other Building Costs",Group Operations,Highland Wood Energy Ltd,100106-101,788.50,
DFID,DFID,03/08/2020,Project delivery costs – supplier services,Economic Development Division,McKinsey Development Partners,205226-101,"112,131.76",
DFID,DFID,04/08/2020,Project delivery costs – supplier services,Economic Development Division,McKinsey Development Partners,205226-101,"2,524,971.01",
DFID,DFID,14/08/2020,Professional member subscriptions,Human Resources,Ashridge Executive & Organisation Development Limited,100269-153,900.00,
DFID,DFID,19/08/2020,Aid Programme - Accountable Grant Payments,West and Southern Africa,African Parks,300113-107,"105,391.00",
DFID,DFID,31/08/2020,Aid Programme - Accountable Grant Payments,East and Central Africa,World Vision Kenya,204437-102,"112,782.00",
DFID,DFID,07/08/2020,Aid Programme - Accountable Grant Payments,"Asia, Caribbean and Overseas Territories",Leonard Cheshire,202865-104,"31,156.04",
DFID,DFID,13/08/2020,Aid Programme - Accountable Grant Payments,Economic Development Division,VisionFund International,203809-118,"22,027.00",
DFID,DFID,07/08/2020,Aid Programme - Accountable Grant Payments,"Asia, Caribbean and Overseas Territories",Save the Children International (SCI),204193-104,"2,000,000.00",
DFID,DFID,21/08/2020,Training - Course Fees,"Humanitarian, Security and Migration Division",ILX Group Plc,202410-108,"1,436.00",
DFID,DFID,31/08/2020,Project delivery costs – supplier services,Policy Division,INSPIRE AFRICA INITIATIVES INTERNATIONAL LIMITED,204963-109,"78,000.00",
DFID,DFID,03/08/2020,Project delivery costs – supplier services,"Humanitarian, Security and Migration Division",Center for Global Development Europe,300612-104,"4,390.50",
DFID,DFID,20/08/2020,Project delivery costs – supplier services,"Asia, Caribbean and Overseas Territories",Acquisory Consulting LLP,300421-102,"5,300.00",
DFID,DFID,26/08/2020,Project delivery costs – supplier services,Economic Development Division,Cowater UK,205222-111,"41,949.24",
DFID,DFID,27/08/2020,Project delivery costs – supplier services,Economic Development Division,Cowater UK,205222-111,"453,949.69",
DFID,DFID,27/08/2020,Project delivery costs – supplier services,Economic Development Division,Cowater UK,205222-112,"58,557.73",
DFID,DFID,26/08/2020,Project delivery costs – supplier services,Economic Development Division,Cowater UK,205222-112,"94,433.49",
DFID,DFID,27/08/2020,Data Network -Satellite,Business Solutions Division Level,IPSEOS sprl,200002-121,"4,891.07",
DFID,DFID,27/08/2020,Data Network -Satellite,Business Solutions Division Level,IPSEOS sprl,203329-102,"11,412.49",
DFID,DFID,13/08/2020,Training - Course Fees,BSD Service Centre,Service Management Association Ltd,300328-101,885.00,
DFID,DFID,07/08/2020,other information and communication technologies,Business Solutions Division Level,BE-IT RESOURCING LTD,200002-176,"2,475.00",
DFID,DFID,24/08/2020,Project delivery costs – supplier services,"Asia, Caribbean and Overseas Territories",Mazars Advisory LLP,300421-102,"4,670.00",
DFID,DFID,26/08/2020,Aid Programme - Accountable Grant Payments,Research and Evidence Division,The Faraday Institution,204867-111,"51,875.00",
DFID,DFID,13/08/2020,Project delivery costs – supplier services,East and Central Africa,WEMA Consult (T) Ltd,204033-104,"17,014.90",
DFID,DFID,20/08/2020,Project delivery costs – supplier services,West and Southern Africa,Sochibga Medical Laboratory and Diagnostic Services,203640-105,"9,487.64",
DFID,DFID,28/08/2020,Office Equipment - Purchases,Group Operations,Ecosystem Limited,203717-101,"6,219.98",
DFID,DFID,27/08/2020,Aid Programme - Accountable Grant Payments,Economic Development Division,World Resources Institute,204250-112,"87,512.00",
DFID,DFID,14/08/2020,Aid Programme - Accountable Grant Payments,"Asia, Caribbean and Overseas Territories",World Resources Institute,300186-101,"152,430.00",
DFID,DFID,24/08/2020,Project delivery costs – supplier services,West and Southern Africa,Margie Cook,300035-101,"17,600.00",
DFID,DFID,31/08/2020,Project delivery costs – supplier services,Policy Division,Greenfields Law,204963-109,"32,787.50",
DFID,DFID,24/08/2020,Aid Programme - Accountable Grant Payments,"Asia, Caribbean and Overseas Territories",Legal Aid Society,204619-115,"50,672.00",
DFID,DFID,17/08/2020,Project delivery costs – supplier services,West and Southern Africa,IGNISE  INVESTMENT COMPANY LTD,300338-104,"5,173.36",
DFID,DFID,26/08/2020,Aid Programme - Other Financial Aid to Government,East and Central Africa,Local Administrative Entities Development Agency,204477-101,"1,830,738.00",
DFID,DFID,26/08/2020,Aid Programme - Other Financial Aid to Government,East and Central Africa,Local Administrative Entities Development Agency,204477-102,"536,250.00",
DFID,DFID,24/08/2020,Project delivery costs – supplier services,West and Southern Africa,GRAHAM CARR MALAWI,205173-106,"9,089.00",
DFID,DFID,28/08/2020,Aid Programme - Core contributions,Economic Development Division,International Fund for Agricultural Development ,205118-114,"50,000.00",
DFID,DFID,24/08/2020,Training Providers/Facilitation Services,"Asia, Caribbean and Overseas Territories",Development Dimensions Africa,101605-101,608.83,
DFID,DFID,19/08/2020,Training - Course Fees,Human Resources,Scene Change Creative Consultants Ltd,100269-126,"3,078.00",
DFID,DFID,19/08/2020,Training - Course Fees,Human Resources,Scene Change Creative Consultants Ltd,100269-126,"3,037.50",
DFID,DFID,05/08/2020,Project delivery costs – supplier services,"Asia, Caribbean and Overseas Territories",Adam Smith International Ltd,202328-102,"376,761.43",
DFID,DFID,13/08/2020,Project delivery costs – supplier services,"Asia, Caribbean and Overseas Territories",Adam Smith International Ltd,300141-102,"164,729.09",
DFID,DFID,28/08/2020,Project delivery costs – supplier services,West and Southern Africa,Adam Smith International Ltd,203161-110,"324,536.10",
DFID,DFID,28/08/2020,Project delivery costs – supplier services,West and Southern Africa,Adam Smith International Ltd,203161-110,"310,656.63",
DFID,DFID,07/08/2020,Project delivery costs – supplier services,West and Southern Africa,Adam Smith International Ltd,204659-104,"105,958.20",
DFID,DFID,07/08/2020,Project delivery costs – supplier services,West and Southern Africa,Adam Smith International Ltd,204659-104,"121,491.21",
DFID,DFID,07/08/2020,Project delivery costs – supplier services,West and Southern Africa,Adam Smith International Ltd,204659-104,"110,276.48",
DFID,DFID,05/08/2020,Project delivery costs – supplier services,West and Southern Africa,Adam Smith International Ltd,202584-106,"61,814.93",
DFID,DFID,27/08/2020,Project delivery costs – supplier services,West and Southern Africa,Adam Smith International Ltd,203674-102,"43,671.35",
DFID,DFID,20/08/2020,Project delivery costs – supplier services,West and Southern Africa,Adam Smith International Ltd,204819-103,"301,620.00",
DFID,DFID,31/08/2020,Project delivery costs – supplier services,East and Central Africa,Adam Smith International Ltd,205065-103,"139,767.27",
DFID,DFID,07/08/2020,Aid Programme - Accountable Grant Payments,West and Southern Africa,Action Against Hunger UK,300432-107,"358,008.00",
DFID,DFID,14/08/2020,Encashment of Promissory Notes,International Relations Division,AFRICAN  DEVELOPMENT BANK GROUP (AFDF),203546-103,"15,274,893.00",
DFID,DFID,14/08/2020,Encashment of Promissory Notes,International Relations Division,AFRICAN  DEVELOPMENT BANK GROUP (AFDF),204674-103,"22,358,571.00",
DFID,DFID,14/08/2020,Encashment of Promissory Notes,International Relations Division,AFRICAN  DEVELOPMENT BANK GROUP (AFDF),202278-103,"4,309,156.00",
DFID,DFID,11/08/2020,Project delivery costs – supplier services,"Asia, Caribbean and Overseas Territories",British Council (UK),204605-102,"321,077.00",
DFID,DFID,18/08/2020,Aid Programme - Accountable Grant Payments,"Humanitarian, Security and Migration Division",BRITISH RED CROSS,300612-107,"5,115.95",
DFID,DFID,27/08/2020,Aid Programme - Accountable Grant Payments,East and Central Africa,BBC Media Action,300490-106,"228,454.72",
DFID,DFID,19/08/2020,Aid Programme - Accountable Grant Payments,West and Southern Africa,BBC Media Action,300506-103,"60,414.00",
DFID,DFID,17/08/2020,Aid Programme - Partnership Programme Arrangements,Economic Development Division,BRITISH GEOLOGICAL SURVEY,205191-106,"117,884.19",
DFID,DFID,05/08/2020,Project delivery costs – supplier services,East and Central Africa,British Council,205135-101,"79,654.60",
DFID,DFID,20/08/2020,Project delivery costs – supplier services,East and Central Africa,British Council,205135-101,"56,967.49",
DFID,DFID,25/08/2020,Project delivery costs – supplier services,"Asia, Caribbean and Overseas Territories",British Council,203488-103,"25,835.87",
DFID,DFID,25/08/2020,Project delivery costs – supplier services,"Asia, Caribbean and Overseas Territories",British Council,203488-105,"103,342.00",
DFID,DFID,14/08/2020,Project delivery costs – supplier services,West and Southern Africa,Christian Aid,204657-102,"294,797.54",
DFID,DFID,12/08/2020,Aid Programme - Accountable Grant Payments,West and Southern Africa,Christian Aid,300254-103,"31,823.69",
DFID,DFID,21/08/2020,Aid Programme - Accountable Grant Payments,East and Central Africa,Christian Aid,204437-104,"65,778.50",
DFID,DFID,03/08/2020,Project delivery costs – supplier services,"Asia, Caribbean and Overseas Territories",Crown Agents Ltd,300003-104,"260,322.10",
DFID,DFID,25/08/2020,Project delivery costs – supplier services,"Asia, Caribbean and Overseas Territories",Crown Agents Ltd,204196-103,"255,662.00",
DFID,DFID,24/08/2020,Project delivery costs – supplier services,"Asia, Caribbean and Overseas Territories",Crown Agents Ltd,204196-103,"60,497.00",
DFID,DFID,24/08/2020,Project delivery costs – supplier services,"Asia, Caribbean and Overseas Territories",Crown Agents Ltd,204196-103,"922,138.00",
DFID,DFID,17/08/2020,Project delivery costs – supplier services,Policy Division,Crown Agents Ltd,205249-104,"92,913.52",
DFID,DFID,17/08/2020,Project delivery costs – supplier services,Policy Division,Crown Agents Ltd,205249-104,"606,269.30",
DFID,DFID,06/08/2020,Aid Programme - Accountable Grant Payments,West and Southern Africa,CONCERN WORLDWIDE (UK),300113-104,"1,116,202.00",
DFID,DFID,20/08/2020,Aid Programme - Accountable Grant Payments,West and Southern Africa,CAMFED,300075-106,"97,639.00",
DFID,DFID,20/08/2020,Aid Programme - Accountable Grant Payments,West and Southern Africa,CAMFED,203292-103,"1,173,055.00",
DFID,DFID,04/08/2020,Project delivery costs – supplier services,Research and Evidence Division,CENTRE FOR ECONOMIC POLICY RESEARCH,300656-101,"28,720.00",
DFID,DFID,06/08/2020,Aid Programme - Accountable Grant Payments,Policy Division,COMIC RELIEF,203873-101,"32,587.00",
DFID,DFID,11/08/2020,Aid Programme - Accountable Grant Payments,Policy Division,COMIC RELIEF,301034-102,"12,366.00",
DFID,DFID,12/08/2020,Aid Programme - Accountable Grant Payments,Policy Division,COMIC RELIEF,204961-101,"325,076.00",
DFID,DFID,26/08/2020,Aid Programme - Accountable Grant Payments,Economic Development Division,UNIVERSITY OF CAMBRIDGE,300452-112,"710,844.00",
DFID,DFID,24/08/2020,Aid Programme - Accountable Grant Payments,Middle East and North Africa Division,Supplier Name withheld,300085-101,"3,145,963.78",
DFID,DFID,14/08/2020,Training - Course Fees,Human Resources,Capita  Business Services,100269-153,"1,275.00",
DFID,DFID,10/08/2020,Training - Course Fees,Human Resources,Capita  Business Services,100269-153,"1,275.00",
DFID,DFID,31/08/2020,Training - Course Fees,Human Resources,Capita  Business Services,100269-153,"1,275.00",
DFID,DFID,14/08/2020,Training Providers/Facilitation Services,Human Resources,Capita  Business Services,100269-109,"3,832.86",
DFID,DFID,14/08/2020,Training Providers/Facilitation Services,Human Resources,Capita  Business Services,100269-109,"2,707.30",
DFID,DFID,31/08/2020,Training - Course Fees,Human Resources,MINISTRY OF DEFENCE,100269-153,"13,920.49",
DFID,DFID,28/08/2020,Project delivery costs – supplier services,"Asia, Caribbean and Overseas Territories",Nathan Associates London Ltd,202180-102,"31,688.86",
DFID,DFID,27/08/2020,Aid Programme - Accountable Grant Payments,Economic Development Division,ETHICAL TRADING INITIATIVE,300805-103,"50,000.00",
DFID,DFID,31/08/2020,Project delivery costs – supplier services,Human Resources,ECA INTERNATIONAL,100269-135,"3,168.00",
DFID,DFID,06/08/2020,Project delivery costs – supplier services,Economic Development Division,Tetra Tech International Development,205222-109,"71,920.00",
DFID,DFID,25/08/2020,Project delivery costs – supplier services,West and Southern Africa,Tetra Tech International Development,300028-101,"162,266.68",
DFID,DFID,18/08/2020,Project delivery costs – supplier services,Policy Division,Tetra Tech International Development,204766-103,"25,872.46",
DFID,DFID,28/08/2020,Project delivery costs – supplier services,East and Central Africa,Tetra Tech International Development,204338-105,"17,696.31",
DFID,DFID,28/08/2020,Project delivery costs – supplier services,East and Central Africa,Tetra Tech International Development,204338-105,"33,068.37",
DFID,DFID,21/08/2020,Project delivery costs – supplier services,West and Southern Africa,Tetra Tech International Development,204242-104,"63,968.00",
DFID,DFID,10/08/2020,Project delivery costs – supplier services,"Asia, Caribbean and Overseas Territories",Tetra Tech International Development,300166-103,"13,339.00",
DFID,DFID,31/08/2020,Project delivery costs – supplier services,"Asia, Caribbean and Overseas Territories",Tetra Tech International Development,300166-103,"26,677.00",
DFID,DFID,25/08/2020,Project delivery costs – supplier services,West and Southern Africa,Tetra Tech International Development,300028-101,"638,184.78",
DFID,DFID,25/08/2020,Project delivery costs – supplier services,East and Central Africa,Tetra Tech International Development,205052-105,"5,137.00",
DFID,DFID,04/08/2020,Professional member subscriptions,Human Resources,Business Disability Forum,100269-126,"8,280.00",
DFID,DFID,14/08/2020,Aid Programme - Accountable Grant Payments,Policy Division,Edinburgh University,201101-117,"53,360.00",
DFID,DFID,12/08/2020,FCO shared service charges,Group Operations,FCO Services,203717-101,752.71,
DFID,DFID,13/08/2020,Project delivery costs – supplier services,Business Solutions Division Level,FCO RECOVERIES UNIT,203329-108,"35,000.00",Project delivery costs - supplier services
DFID,DFID,13/08/2020,Project delivery costs – supplier services,Business Solutions Division Level,FCO RECOVERIES UNIT,200002-229,"15,000.00",
DFID,DFID,25/08/2020,Project delivery costs – supplier services,West and Southern Africa,Palladium,203429-109,"97,494.50",
DFID,DFID,25/08/2020,Project delivery costs – supplier services,West and Southern Africa,Palladium,203429-109,"31,650.00",
DFID,DFID,11/08/2020,Aid Programme - Humanitarian Material Relief Assistance and Services,Middle East and North Africa Division,Palladium,204516-102,"30,113.88",
DFID,DFID,05/08/2020,Aid Programme - Humanitarian Material Relief Assistance and Services,Middle East and North Africa Division,Palladium,204516-102,"5,381.64",
DFID,DFID,27/08/2020,Project delivery costs – supplier services,East and Central Africa,Palladium,204940-103,"9,373.66",
DFID,DFID,13/08/2020,Project delivery costs – supplier services,East and Central Africa,Palladium,204940-103,889.00,
DFID,DFID,11/08/2020,Project delivery costs – supplier services,East and Central Africa,Palladium,204940-112,"5,828.84",
DFID,DFID,13/08/2020,Project delivery costs – supplier services,East and Central Africa,Palladium,204940-113,"1,333.50",
DFID,DFID,27/08/2020,Project delivery costs – supplier services,East and Central Africa,Palladium,204940-113,"14,060.50",
DFID,DFID,20/08/2020,Project delivery costs – supplier services,East and Central Africa,Palladium,300196-114,"3,453.56",
DFID,DFID,10/08/2020,Project delivery costs – supplier services,"Asia, Caribbean and Overseas Territories",Palladium,301144-105,"15,705.36",
DFID,DFID,07/08/2020,Project delivery costs – supplier services,Middle East and North Africa Division,Palladium,300561-105,"28,323.00",
DFID,DFID,07/08/2020,Project delivery costs – supplier services,Middle East and North Africa Division,Palladium,300561-105,"3,696.39",
DFID,DFID,18/08/2020,Project delivery costs – supplier services,"Asia, Caribbean and Overseas Territories",Palladium,205268-112,"16,404.66",
DFID,DFID,24/08/2020,Project delivery costs – supplier services,"Asia, Caribbean and Overseas Territories",Palladium,205268-112,"4,153.39",
DFID,DFID,24/08/2020,Project delivery costs – supplier services,Policy Division,Palladium,300310-104,"63,111.35",
DFID,DFID,17/08/2020,Project delivery costs – supplier services,East and Central Africa,Palladium,204809-102,"108,220.23",
DFID,DFID,12/08/2020,Project delivery costs – supplier services,Climate and Environment Division,Palladium,201724-130,"366,284.25",
DFID,DFID,10/08/2020,Project delivery costs – supplier services,"Asia, Caribbean and Overseas Territories",Palladium,204196-105,"16,773.47",
DFID,DFID,25/08/2020,Project delivery costs – supplier services,East and Central Africa,Palladium,202596-108,"7,671.73",
DFID,DFID,10/08/2020,Project delivery costs – supplier services,East and Central Africa,Palladium,202900-108,"94,691.83",
DFID,DFID,14/08/2020,Project delivery costs – supplier services,East and Central Africa,Palladium,300363-107,"30,149.77",
DFID,DFID,11/08/2020,Project delivery costs – supplier services,East and Central Africa,Palladium,300363-107,"22,230.52",
DFID,DFID,12/08/2020,Project delivery costs – supplier services,"Humanitarian, Security and Migration Division",Palladium,300612-109,"13,123.44",
DFID,DFID,05/08/2020,Project delivery costs – supplier services,"Humanitarian, Security and Migration Division",Palladium,300612-110,"11,880.00",
DFID,DFID,19/08/2020,Project delivery costs – supplier services,West and Southern Africa,Palladium,300506-101,"174,524.24",
DFID,DFID,11/08/2020,Project delivery costs – supplier services,"Asia, Caribbean and Overseas Territories",Palladium,205268-112,"2,019.24",
DFID,DFID,27/08/2020,Project delivery costs – supplier services,Middle East and North Africa Division,Palladium,301229-105,"163,068.00",
DFID,DFID,25/08/2020,Project delivery costs – supplier services,Middle East and North Africa Division,Palladium,301229-105,"231,435.23",
DFID,DFID,17/08/2020,Project delivery costs – supplier services,"Humanitarian, Security and Migration Division",Palladium,205176-114,"9,551.48",
DFID,DFID,07/08/2020,Project delivery costs – supplier services,West and Southern Africa,Palladium,300719-104,"6,194.16",
DFID,DFID,19/08/2020,Project delivery costs – supplier services,West and Southern Africa,Palladium,300832-105,"1,465.79",
DFID,DFID,12/08/2020,Project delivery costs – supplier services,East and Central Africa,Palladium,205206-109,"13,169.52",
DFID,DFID,05/08/2020,Project delivery costs – supplier services,Policy Division,Palladium,300467-101,"15,063.22",
DFID,DFID,27/08/2020,Project delivery costs – supplier services,Policy Division,Palladium,300467-101,"9,522.53",
DFID,DFID,27/08/2020,Project delivery costs – supplier services,Economic Development Division,Palladium,300789-108,"12,029.47",
DFID,DFID,06/08/2020,Project delivery costs – supplier services,Economic Development Division,Palladium,300789-108,"9,729.72",
DFID,DFID,12/08/2020,Project delivery costs – supplier services,West and Southern Africa,Palladium,300432-105,"5,485.32",
DFID,DFID,13/08/2020,Project delivery costs – supplier services,East and Central Africa,Palladium,204019-107,"41,214.46",
DFID,DFID,31/08/2020,Project delivery costs – supplier services,East and Central Africa,Palladium,204019-107,"2,402.58",
DFID,DFID,07/08/2020,Project delivery costs – supplier services,"Humanitarian, Security and Migration Division",Palladium,301150-103,"49,589.00",
DFID,DFID,03/08/2020,Project delivery costs – supplier services,"Humanitarian, Security and Migration Division",Palladium,301150-103,"22,819.32",
DFID,DFID,03/08/2020,Project delivery costs – supplier services,"Humanitarian, Security and Migration Division",Palladium,301150-103,"32,461.06",
DFID,DFID,03/08/2020,Project delivery costs – supplier services,"Humanitarian, Security and Migration Division",Palladium,301150-103,"62,844.66",
DFID,DFID,05/08/2020,Project delivery costs – supplier services,"Humanitarian, Security and Migration Division",Palladium,301150-103,"2,157.52",
DFID,DFID,27/08/2020,Project delivery costs – supplier services,Middle East and North Africa Division,Palladium,300611-105,"3,148.63",
DFID,DFID,27/08/2020,Project delivery costs – supplier services,Middle East and North Africa Division,Palladium,300611-105,734.13,
DFID,DFID,25/08/2020,Project delivery costs – supplier services,East and Central Africa,Palladium,204012-106,"187,232.37",
DFID,DFID,28/08/2020,Project delivery costs – supplier services,"Asia, Caribbean and Overseas Territories",Palladium,204613-101,"87,378.59",
DFID,DFID,24/08/2020,Project delivery costs – supplier services,West and Southern Africa,Palladium,204822-102,"224,869.31",
DFID,DFID,20/08/2020,Aid Programme - Humanitarian Material Relief Assistance and Services,"Asia, Caribbean and Overseas Territories",Palladium,204603-101,741.95,
DFID,DFID,10/08/2020,Project delivery costs – supplier services,Middle East and North Africa Division,Palladium,300417-101,"1,128.64",
DFID,DFID,10/08/2020,Project delivery costs – supplier services,Middle East and North Africa Division,Palladium,300417-101,"39,687.12",
DFID,DFID,10/08/2020,Project delivery costs – supplier services,Middle East and North Africa Division,Palladium,300417-101,"13,155.12",
DFID,DFID,17/08/2020,Project delivery costs – supplier services,Middle East and North Africa Division,Palladium,300417-101,"2,224.80",
DFID,DFID,20/08/2020,Project delivery costs – supplier services,"Asia, Caribbean and Overseas Territories",Palladium,201851-101,"148,745.21",
DFID,DFID,26/08/2020,Project delivery costs – supplier services,East and Central Africa,Palladium,203539-102,"120,285.22",
DFID,DFID,14/08/2020,Project delivery costs – supplier services,"Asia, Caribbean and Overseas Territories",Palladium,203427-105,"103,949.92",
DFID,DFID,20/08/2020,Project delivery costs – supplier services,West and Southern Africa,Palladium,202098-106,"278,639.83",
DFID,DFID,13/08/2020,Project delivery costs – supplier services,West and Southern Africa,Palladium,202098-106,"124,700.00",
DFID,DFID,18/08/2020,Project delivery costs – supplier services,Middle East and North Africa Division,Palladium,300060-101,"109,922.73",
DFID,DFID,19/08/2020,Project delivery costs – supplier services,Middle East and North Africa Division,Palladium,300060-101,"205,406.57",
DFID,DFID,10/08/2020,Project delivery costs – supplier services,West and Southern Africa,Palladium,300163-105,"21,098.59",
DFID,DFID,17/08/2020,Project delivery costs – supplier services,West and Southern Africa,Palladium,300163-105,716.56,
DFID,DFID,19/08/2020,Project delivery costs – supplier services,"Asia, Caribbean and Overseas Territories",Palladium,201724-153,"92,783.77",
DFID,DFID,06/08/2020,Project delivery costs – supplier services,"Humanitarian, Security and Migration Division",Palladium,300461-105,"24,654.49",
DFID,DFID,28/08/2020,Project delivery costs – supplier services,"Humanitarian, Security and Migration Division",Palladium,205176-106,"17,246.53",
DFID,DFID,05/08/2020,Project delivery costs – supplier services,"Humanitarian, Security and Migration Division",Palladium,205176-106,"13,438.05",
DFID,DFID,05/08/2020,Project delivery costs – supplier services,"Humanitarian, Security and Migration Division",Palladium,205176-106,"34,832.94",
DFID,DFID,11/08/2020,Project delivery costs – supplier services,"Humanitarian, Security and Migration Division",Palladium,205176-106,"6,773.55",
DFID,DFID,04/08/2020,Project delivery costs – supplier services,"Humanitarian, Security and Migration Division",Palladium,205176-110,"2,391.84",
DFID,DFID,17/08/2020,Project delivery costs – supplier services,"Humanitarian, Security and Migration Division",Palladium,205176-110,"13,155.12",
DFID,DFID,19/08/2020,Project delivery costs – supplier services,"Asia, Caribbean and Overseas Territories",ICF Consulting Services Ltd,300003-103,"28,077.00",
DFID,DFID,19/08/2020,Project delivery costs – supplier services,"Asia, Caribbean and Overseas Territories",ICF Consulting Services Ltd,300003-103,"26,220.00",
DFID,DFID,19/08/2020,Project delivery costs – supplier services,"Asia, Caribbean and Overseas Territories",ICF Consulting Services Ltd,300003-109,"68,608.00",
DFID,DFID,19/08/2020,Project delivery costs – supplier services,"Asia, Caribbean and Overseas Territories",ICF Consulting Services Ltd,300003-109,"64,068.00",
DFID,DFID,12/08/2020,Aid Programme - Humanitarian Material Relief Assistance and Services,"Humanitarian, Security and Migration Division",GOAL,301150-119,"1,800,000.00",
DFID,DFID,03/08/2020,Aid Programme - Accountable Grant Payments,Middle East and North Africa Division,Supplier Name withheld,300087-101,"217,504.00",
DFID,DFID,13/08/2020,Project delivery costs – supplier services,"Humanitarian, Security and Migration Division",The Halo Trust,300544-101,"2,833,442.00",
DFID,DFID,07/08/2020,Aid Programme - Accountable Grant Payments,East and Central Africa,HANDICAP INTERNATIONAL UK,204019-135,"425,418.00",
DFID,DFID,10/08/2020,Aid Programme - Accountable Grant Payments,Middle East and North Africa Division,HANDICAP INTERNATIONAL UK,300537-105,"26,153.18",
DFID,DFID,10/08/2020,Aid Programme - Accountable Grant Payments,Middle East and North Africa Division,HANDICAP INTERNATIONAL UK,300537-101,"391,571.36",
DFID,DFID,12/08/2020,Contract & Agency Staff,Business Solutions Division Level,Hays Specialist Recruitment Ltd,200002-176,"6,652.80",
DFID,DFID,10/08/2020,Contract & Agency Staff,Business Solutions Division Level,Hays Specialist Recruitment Ltd,200002-251,"7,920.00",
DFID,DFID,14/08/2020,Project delivery costs – supplier services,"Humanitarian, Security and Migration Division",ITAD Ltd,205255-105,"32,020.80",
DFID,DFID,07/08/2020,Aid Programme - Core contributions,Research and Evidence Division,International Centre For Diarro,300384-101,"1,250,000.00",
DFID,DFID,12/08/2020,Aid Programme - Core contributions,"Humanitarian, Security and Migration Division",IOM (GENEVA),300339-107,"2,147,184.56",
DFID,DFID,21/08/2020,Aid Programme - Humanitarian Material Relief Assistance and Services,"Asia, Caribbean and Overseas Territories",INTERNATIONAL RESCUE COMMITTEE UK,204603-106,"27,792.00",
DFID,DFID,28/08/2020,Aid Programme - Accountable Grant Payments,Research and Evidence Division,INTERNATIONAL AIDS VACCINE INITIATIVE INC.,300341-115,"620,836.00",
DFID,DFID,12/08/2020,Aid Programme - Accountable Grant Payments,"Asia, Caribbean and Overseas Territories",Institute Of Development Studies,203174-101,"42,156.45",
DFID,DFID,07/08/2020,Aid Programme - Accountable Grant Payments,Policy Division,Institute Of Development Studies,300055-116,"354,250.93",
DFID,DFID,28/08/2020,Aid Programme - Accountable Grant Payments,"Asia, Caribbean and Overseas Territories",Institute Of Development Studies,300552-101,"563,113.00",
DFID,DFID,05/08/2020,Aid Programme - Trust Funds contributions,Research and Evidence Division,IBRD HSBC T,300769-103,"400,000.00",
DFID,DFID,11/08/2020,Aid Programme - Trust Funds contributions,Economic Development Division,IBRD HSBC T,300751-101,"7,000,000.00",
DFID,DFID,31/08/2020,Aid Programme - Trust Funds contributions,Research and Evidence Division,IBRD HSBC T,203050-103,"1,188,387.00",
DFID,DFID,07/08/2020,Aid Programme - Trust Funds contributions,West and Southern Africa,IBRD HSBC T,202854-101,"596,349.89",
DFID,DFID,06/08/2020,Aid Programme - Trust Funds contributions,Economic Development Division,IBRD HSBC T,203808-105,"499,553.00",
DFID,DFID,03/08/2020,Aid Programme - Trust Funds contributions,West and Southern Africa,IBRD (HSBC)  C/O THE WORLD BANK,114086-109,"6,800,000.00",
DFID,DFID,26/08/2020,Aid Programme - Core contributions,Research and Evidence Division,IBRD (HSBC)  C/O THE WORLD BANK,204765-109,"110,000,000.00",
DFID,DFID,26/08/2020,Aid Programme - Trust Funds contributions,"Asia, Caribbean and Overseas Territories",IBRD (HSBC)  C/O THE WORLD BANK,204469-103,"4,000,000.00",
DFID,DFID,03/08/2020,Aid Programme - Voluntary contributions,Economic Development Division,INTERNATIONAL TRADE CENTRE,300593-103,"822,173.00",
DFID,DFID,26/08/2020,Aid Programme - Joint programme contribution,Economic Development Division,INTERNATIONAL TRADE CENTRE,205226-102,"304,952.85",
DFID,DFID,26/08/2020,Aid Programme - Joint programme contribution,"Asia, Caribbean and Overseas Territories",INTERNATIONAL TRADE CENTRE,205226-105,"170,000.00",
DFID,DFID,07/08/2020,Aid Programme - Accountable Grant Payments,Middle East and North Africa Division,Supplier Name withheld,300088-101,"2,132,994.00",
DFID,DFID,07/08/2020,Aid Programme - Accountable Grant Payments,Middle East and North Africa Division,Supplier Name withheld,300088-101,"314,122.00",
DFID,DFID,10/08/2020,Aid Programme - Accountable Grant Payments,East and Central Africa,INTERNATIONAL MEDICAL CORPS (UK),204019-122,"955,934.00",
DFID,DFID,03/08/2020,Aid Programme - Accountable Grant Payments,East and Central Africa,Liverpool School Of Tropical Medicine,202549-104,"182,037.00",
DFID,DFID,11/08/2020,Research and development costs - supplier services,Research and Evidence Division,London School Of Hygiene And Tropical Medicine,300342-101,"760,011.72",
DFID,DFID,06/08/2020,Project delivery costs – supplier services,Research and Evidence Division,London School Of Hygiene And Tropical Medicine,114396-104,"128,042.99",
DFID,DFID,27/08/2020,Aid Programme - Accountable Grant Payments,Research and Evidence Division,London School Of Hygiene And Tropical Medicine,204133-105,"44,214.92",
DFID,DFID,12/08/2020,Project delivery costs – supplier services,East and Central Africa,Mott Macdonald Ltd,204288-103,"280,623.99",
DFID,DFID,13/08/2020,Project delivery costs – supplier services,West and Southern Africa,Mott Macdonald Ltd,205234-102,"348,114.82",
DFID,DFID,13/08/2020,Project delivery costs – supplier services,West and Southern Africa,Mott Macdonald Ltd,205234-108,892.75,
DFID,DFID,10/08/2020,Project delivery costs – supplier services,West and Southern Africa,Mott Macdonald Ltd,205195-103,"38,139.16",
DFID,DFID,12/08/2020,Project delivery costs – supplier services,"Asia, Caribbean and Overseas Territories",Mott Macdonald Ltd,204984-105,"154,915.28",
DFID,DFID,18/08/2020,Project delivery costs – supplier services,West and Southern Africa,Mott Macdonald Ltd,203154-103,"287,351.01",
DFID,DFID,12/08/2020,Project delivery costs – supplier services,"Asia, Caribbean and Overseas Territories",Mott Macdonald Ltd,205138-102,"194,366.90",
DFID,DFID,12/08/2020,Project delivery costs – supplier services,"Asia, Caribbean and Overseas Territories",Mott Macdonald Ltd,205138-108,"266,270.98",
DFID,DFID,12/08/2020,Project delivery costs – supplier services,"Asia, Caribbean and Overseas Territories",Mott Macdonald Ltd,205138-110,"135,168.36",
DFID,DFID,21/08/2020,Project delivery costs – supplier services,West and Southern Africa,Mott Macdonald Ltd,300075-101,"34,084.89",
DFID,DFID,28/08/2020,Project delivery costs – supplier services,Economic Development Division,Mott Macdonald Ltd,300805-101,"221,397.00",
DFID,DFID,10/08/2020,Project delivery costs – supplier services,"Asia, Caribbean and Overseas Territories",Mott Macdonald Ltd,300796-103,"6,600.00",
DFID,DFID,05/08/2020,Project delivery costs – supplier services,East and Central Africa,Mott Macdonald Ltd,300449-102,"544,493.56",
DFID,DFID,05/08/2020,Fund monies to be managed and dispersed by the supplier,East and Central Africa,Mott Macdonald Ltd,300449-103,"36,813.45",
DFID,DFID,14/08/2020,Project delivery costs – supplier services,East and Central Africa,Mott Macdonald Ltd,300449-105,"288,099.50",
DFID,DFID,28/08/2020,Project delivery costs – supplier services,"Asia, Caribbean and Overseas Territories",Mott Macdonald Ltd,204023-104,"583,396.80",
DFID,DFID,04/08/2020,Project delivery costs – supplier services,"Asia, Caribbean and Overseas Territories",Mott Macdonald Ltd,204023-104,"531,451.22",
DFID,DFID,18/08/2020,Data Network - land lines,Business Solutions Division Level,VODAFONE LIMITED,203329-103,"11,061.12",
DFID,DFID,18/08/2020,Data Network - land lines,Business Solutions Division Level,VODAFONE LIMITED,203329-103,739.49,
DFID,DFID,18/08/2020,Telephone Usage & services,Business Solutions Division Level,VODAFONE LIMITED,203329-103,"13,039.99",
DFID,DFID,18/08/2020,Telephone Usage & services,Business Solutions Division Level,VODAFONE LIMITED,200002-185,"5,588.56",
DFID,DFID,18/08/2020,Data Network - land lines,Business Solutions Division Level,VODAFONE LIMITED,200002-185,"4,740.48",
DFID,DFID,13/08/2020,Project delivery costs – supplier services,"Humanitarian, Security and Migration Division",Supplier Name withheld,300544-108,"2,207,508.55",
DFID,DFID,27/08/2020,Aid Programme - Joint programme contribution,Research and Evidence Division,Met Office,203835-108,"33,823.08",
DFID,DFID,20/08/2020,Project delivery costs – supplier services,"Asia, Caribbean and Overseas Territories",Met Office,203185-105,"530,027.00",
DFID,DFID,17/08/2020,Project delivery costs – supplier services,West and Southern Africa,Malaria Consortium,202979-104,"178,264.00",
DFID,DFID,17/08/2020,Project delivery costs – supplier services,West and Southern Africa,Malaria Consortium,202979-104,500.64,
DFID,DFID,20/08/2020,Project delivery costs – supplier services,West and Southern Africa,Malaria Consortium,202979-104,"156,007.00",
DFID,DFID,20/08/2020,Project delivery costs – supplier services,West and Southern Africa,Malaria Consortium,202979-104,"133,843.90",
DFID,DFID,07/08/2020,Aid Programme - Accountable Grant Payments,West and Southern Africa,Mercy Corps Europe,203445-109,"2,185,906.00",
DFID,DFID,28/08/2020,Aid Programme - Accountable Grant Payments,West and Southern Africa,Mercy Corps Europe,204565-115,"1,613,910.00",
DFID,DFID,20/08/2020,Aid Programme - Accountable Grant Payments,West and Southern Africa,Mercy Corps Europe,300309-102,"709,060.00",
DFID,DFID,21/08/2020,Project delivery costs – supplier services,East and Central Africa,Mercy Corps Europe,204012-104,"65,222.26",
DFID,DFID,21/08/2020,Project delivery costs – supplier services,East and Central Africa,Mercy Corps Europe,204012-105,"115,795.50",
DFID,DFID,13/08/2020,Aid Programme - Accountable Grant Payments,East and Central Africa,Mercy Corps Europe,204437-104,"68,774.00",
DFID,DFID,05/08/2020,Project delivery costs – supplier services,Stabilisation Unit,FOREIGN AND COMMONWEALTH OFFICE (FCO),300646-103,"38,893.00",
DFID,DFID,12/08/2020,Project delivery costs – supplier services,East and Central Africa,Oxford Policy Management,205065-107,"53,012.50",
DFID,DFID,03/08/2020,Project delivery costs – supplier services,East and Central Africa,Oxford Policy Management,205065-107,"192,561.44",
DFID,DFID,17/08/2020,Project delivery costs – supplier services,"Asia, Caribbean and Overseas Territories",Oxford Policy Management,300238-102,"36,469.00",
DFID,DFID,19/08/2020,Project delivery costs – supplier services,West and Southern Africa,Oxford Policy Management,204330-103,"109,294.36",
DFID,DFID,28/08/2020,Project delivery costs – supplier services,West and Southern Africa,Oxford Policy Management,203161-102,"7,241.88",
DFID,DFID,20/08/2020,Project delivery costs – supplier services,East and Central Africa,Oxford Policy Management,204477-106,"57,535.20",
DFID,DFID,18/08/2020,Project delivery costs – supplier services,Policy Division,Oxford Policy Management,300468-101,"15,592.50",
DFID,DFID,25/08/2020,Project delivery costs – supplier services,Policy Division,Oxford Policy Management,300468-101,"4,650.00",
DFID,DFID,25/08/2020,Project delivery costs – supplier services,Policy Division,Oxford Policy Management,300468-101,"9,538.50",
DFID,DFID,25/08/2020,Project delivery costs – supplier services,Policy Division,Oxford Policy Management,300468-101,"6,452.00",
DFID,DFID,27/08/2020,Project delivery costs – supplier services,East and Central Africa,Oxford Policy Management,204940-102,"12,206.25",
DFID,DFID,19/08/2020,Project delivery costs – supplier services,Research and Evidence Division,Oxford Policy Management,203051-103,"138,578.62",
DFID,DFID,13/08/2020,Research and development costs - supplier services,Research and Evidence Division,Oxford Policy Management,204773-102,"150,000.00",
DFID,DFID,13/08/2020,Research and development costs - supplier services,Research and Evidence Division,Oxford Policy Management,204773-103,"142,419.72",
DFID,DFID,26/08/2020,Project delivery costs – supplier services,West and Southern Africa,Oxford Policy Management,205126-101,"7,330.24",
DFID,DFID,27/08/2020,Project delivery costs – supplier services,West and Southern Africa,Oxford Policy Management,205126-101,"227,578.82",
DFID,DFID,06/08/2020,Project delivery costs – supplier services,East and Central Africa,Oxford Policy Management,204288-104,"7,226.64",
DFID,DFID,25/08/2020,Project delivery costs – supplier services,East and Central Africa,Oxford Policy Management,204288-104,"26,765.68",
DFID,DFID,25/08/2020,Project delivery costs – supplier services,East and Central Africa,Oxford Policy Management,204288-104,"3,556.05",
DFID,DFID,10/08/2020,Project delivery costs – supplier services,East and Central Africa,Oxford Policy Management,204288-104,"12,517.24",
DFID,DFID,17/08/2020,Project delivery costs – supplier services,East and Central Africa,Oxford Policy Management,204288-104,"62,314.75",
DFID,DFID,17/08/2020,Project delivery costs – supplier services,East and Central Africa,Oxford Policy Management,204288-104,587.66,
DFID,DFID,03/08/2020,Project delivery costs – supplier services,West and Southern Africa,Oxford Policy Management,204497-103,"971,788.00",
DFID,DFID,21/08/2020,Project delivery costs – supplier services,East and Central Africa,Oxford Policy Management,205241-108,"34,200.45",
DFID,DFID,12/08/2020,Project delivery costs – supplier services,Research and Evidence Division,Oxford Policy Management,204322-102,"1,241,417.52",
DFID,DFID,18/08/2020,Project delivery costs – supplier services,Economic Development Division,Oxford Policy Management,204256-101,"180,866.55",
DFID,DFID,07/08/2020,Project delivery costs – supplier services,West and Southern Africa,Oxford Policy Management,300036-118,"13,332.05",
DFID,DFID,28/08/2020,Project delivery costs – supplier services,East and Central Africa,Oxford Policy Management,203871-109,"56,494.66",
DFID,DFID,05/08/2020,Project delivery costs – supplier services,"Asia, Caribbean and Overseas Territories",Oxford Policy Management,204984-109,"90,996.00",
DFID,DFID,28/08/2020,Project delivery costs – supplier services,"Humanitarian, Security and Migration Division",Oxford Policy Management,300339-108,"238,634.56",
DFID,DFID,11/08/2020,Project delivery costs – supplier services,East and Central Africa,Oxford Policy Management,300363-101,"196,389.47",
DFID,DFID,18/08/2020,Project delivery costs – supplier services,Policy Division,Oxford Policy Management,204695-109,"5,532.31",
DFID,DFID,27/08/2020,Project delivery costs – supplier services,"Asia, Caribbean and Overseas Territories",Oxford Policy Management,204193-103,"18,262.29",
DFID,DFID,11/08/2020,Project delivery costs – supplier services,"Asia, Caribbean and Overseas Territories",Oxford Policy Management,204193-103,"24,238.58",
DFID,DFID,25/08/2020,Project delivery costs – supplier services,"Asia, Caribbean and Overseas Territories",Options Consultancy Services Limited,205145-101,"208,485.76",
DFID,DFID,10/08/2020,Project delivery costs – supplier services,"Asia, Caribbean and Overseas Territories",Options Consultancy Services Limited,205145-101,"208,485.76",
DFID,DFID,10/08/2020,Project delivery costs – supplier services,"Asia, Caribbean and Overseas Territories",Options Consultancy Services Limited,205145-101,"208,485.76",
DFID,DFID,25/08/2020,Aid Programme - Accountable Grant Payments,East and Central Africa,OVERSEAS DEVELOPMENT INSTITUTE,204793-103,"148,486.60",
DFID,DFID,18/08/2020,Project delivery costs – supplier services,Economic Development Division,Pricewaterhousecoopers,204531-103,954.00,
DFID,DFID,10/08/2020,Project delivery costs – supplier services,West and Southern Africa,Pricewaterhousecoopers,301001-101,"137,548.80",
DFID,DFID,10/08/2020,Project delivery costs – supplier services,Economic Development Division,Pricewaterhousecoopers,301001-102,"52,623.29",
DFID,DFID,03/08/2020,Project delivery costs – supplier services,Middle East and North Africa Division,Pricewaterhousecoopers,205093-103,"25,812.00",
DFID,DFID,11/08/2020,Project delivery costs – supplier services,"Asia, Caribbean and Overseas Territories",Pricewaterhousecoopers,300109-101,"102,769.51",
DFID,DFID,11/08/2020,Project delivery costs – supplier services,"Asia, Caribbean and Overseas Territories",Pricewaterhousecoopers,300109-102,"54,795.49",
DFID,DFID,03/08/2020,Project delivery costs – supplier services,Policy Division,Pricewaterhousecoopers,204766-102,"244,832.06",
DFID,DFID,20/08/2020,Project delivery costs – supplier services,West and Southern Africa,Pricewaterhousecoopers,203161-104,"27,977.44",
DFID,DFID,28/08/2020,Project delivery costs – supplier services,West and Southern Africa,Pricewaterhousecoopers,203161-104,"385,152.23",
DFID,DFID,18/08/2020,Project delivery costs – supplier services,Economic Development Division,Pricewaterhousecoopers,204531-104,"2,736.00",
DFID,DFID,18/08/2020,Project delivery costs – supplier services,Economic Development Division,Pricewaterhousecoopers,204531-103,"29,227.55",
DFID,DFID,06/08/2020,Storage & Distribution costs,"Asia, Caribbean and Overseas Territories",PICKFORDS LTD,101603-101,624.64,
DFID,DFID,31/08/2020,Aid Programme - Accountable Grant Payments,"Asia, Caribbean and Overseas Territories",Population Services International,300435-103,"1,092,574.36",
DFID,DFID,05/08/2020,Training - Course Fees,Research and Evidence Division,THE POLICY PRACTICE LTD,202331-101,"43,880.00",Training - Course Fees
DFID,DFID,11/08/2020,Aid Programme - Accountable Grant Payments,West and Southern Africa,The Save The Children Fund,202978-104,"193,588.00",
DFID,DFID,07/08/2020,Aid Programme - Accountable Grant Payments,Research and Evidence Division,The Save The Children Fund,300966-101,"926,059.00",
DFID,DFID,07/08/2020,Aid Programme - Accountable Grant Payments,Research and Evidence Division,The Save The Children Fund,300966-101,"566,546.00",
DFID,DFID,04/08/2020,Aid Programme - Accountable Grant Payments,Economic Development Division,The Save The Children Fund,205231-124,"135,801.00",
DFID,DFID,28/08/2020,Aid Programme - Accountable Grant Payments,West and Southern Africa,The Save The Children Fund,201874-102,"54,937.00",
DFID,DFID,05/08/2020,Aid Programme - Accountable Grant Payments,"Asia, Caribbean and Overseas Territories",The Save The Children Fund,300003-110,"1,120,000.00",
DFID,DFID,05/08/2020,Aid Programme - Accountable Grant Payments,Policy Division,SAVE THE CHILDREN,300590-102,"34,125.00",
DFID,DFID,13/08/2020,Aid Programme - Accountable Grant Payments,East and Central Africa,Saferworld,204437-104,"85,382.00",
DFID,DFID,17/08/2020,Project delivery costs – supplier services,West and Southern Africa,Social Development Direct Ltd,300385-104,"46,205.95",
DFID,DFID,28/08/2020,Project delivery costs – supplier services,Policy Division,Social Development Direct Ltd,203245-106,"13,374.95",
DFID,DFID,28/08/2020,Project delivery costs – supplier services,Policy Division,Social Development Direct Ltd,203245-106,"16,650.00",
DFID,DFID,07/08/2020,Aid Programme - Accountable Grant Payments,Policy Division,RESTLESS DEVELOPMENT,300055-109,"513,040.00",
DFID,DFID,28/08/2020,Project delivery costs – supplier services,Business Solutions Division Level,SITEIMPROVE LTD,200002-196,"4,902.26",
DFID,DFID,13/08/2020,Courier & Bag Services,Business Solutions Division Level,FedEx Express UK Transportation Limited,200002-153,829.30,
DFID,DFID,05/08/2020,Courier & Bag Services,Business Solutions Division Level,FedEx Express UK Transportation Limited,200002-153,648.83,
DFID,DFID,07/08/2020,Courier & Bag Services,Business Solutions Division Level,FedEx Express UK Transportation Limited,200002-153,"2,319.90",
DFID,DFID,28/08/2020,Legal costs,Business Change and Strategy Division,GOVERNMENT LEGAL DEPARTMENT,204934-101,"57,000.00",Legal costs
DFID,DFID,20/08/2020,Project delivery costs – supplier services,Policy Division,Tropical Health And Education Trust,205243-101,"197,788.74",
DFID,DFID,17/08/2020,Courier & Bag Services,Business Solutions Division Level,TNT INTERNATIONAL,200002-153,628.22,
DFID,DFID,20/08/2020,Training - Course Fees,East and Central Africa,University Of Birmingham,100212-101,"5,240.00",
DFID,DFID,31/08/2020,Aid Programme - Accountable Grant Payments,East and Central Africa,University Of Oxford.,300559-117,"30,416.72",
DFID,DFID,26/08/2020,Aid Programme - Voluntary contributions,Middle East and North Africa Division,UN RELIEF AND WORKS AGENCY,300389-101,"6,000,000.00",
DFID,DFID,18/08/2020,Aid Programme - Pooled/Basket funding,East and Central Africa,UNDP GBP Contributions,300490-103,"500,000.00",
DFID,DFID,12/08/2020,Aid Programme - Pooled/Basket funding,East and Central Africa,UNDP GBP Contributions,300490-103,"500,000.00",
DFID,DFID,21/08/2020,Aid Programme - Pooled/Basket funding,West and Southern Africa,UNDP GBP Contributions,205045-102,"750,000.00",
DFID,DFID,21/08/2020,Research and development costs - supplier services,Research and Evidence Division,University Of Leeds,301132-101,"42,793.96",
DFID,DFID,20/08/2020,Aid Programme - Voluntary contributions,Policy Division,United Nation’s Children Fund (UNICEF),300463-102,"1,594,077.00",
DFID,DFID,11/08/2020,Aid Programme - Core contributions,"Humanitarian, Security and Migration Division",United Nation’s Children Fund (UNICEF),300339-105,"5,600,000.00",
DFID,DFID,10/08/2020,Telephone Usage & services,Business Solutions Division Level,VODAFONE CORPORATE,200002-170,502.86,
DFID,DFID,10/08/2020,Telephone Usage & services,Business Solutions Division Level,VODAFONE CORPORATE,200002-170,"27,217.59",Telephone Usage & services
DFID,DFID,06/08/2020,Data Network - land lines,Business Solutions Division Level,VERIZON UK LIMITED,200002-126,"3,317.88",
DFID,DFID,12/08/2020,Data Network - land lines,Business Solutions Division Level,VERIZON UK LIMITED,200002-126,750.00,
DFID,DFID,12/08/2020,Data Network - land lines,Business Solutions Division Level,VERIZON UK LIMITED,200002-126,"9,091.09",
DFID,DFID,19/08/2020,Aid Programme - Accountable Grant Payments,Economic Development Division,Westminster Foundation for Democracy,300496-101,"1,085,916.00",
DFID,DFID,19/08/2020,Aid Programme - Accountable Grant Payments,Economic Development Division,Westminster Foundation for Democracy,300496-102,"26,000.00",
DFID,DFID,27/08/2020,Aid Programme - Accountable Grant Payments,"Asia, Caribbean and Overseas Territories",Westminster Foundation for Democracy,203454-106,"526,652.00",
DFID,DFID,11/08/2020,Project delivery costs – supplier services,East and Central Africa,Westminster Foundation for Democracy,300878-102,"9,872.50",
DFID,DFID,24/08/2020,Auditors Remuneration & Expenses - Cash,West and Southern Africa,PKF Professional Services,201874-104,"9,882.50",
DFID,DFID,24/08/2020,Project delivery costs – supplier services,West and Southern Africa,PKF Professional Services,204819-102,"6,670.69",
DFID,DFID,24/08/2020,Auditors Remuneration & Expenses - Cash,West and Southern Africa,PKF Professional Services,204822-104,"35,577.00",
DFID,DFID,25/08/2020,Aid Programme - Accountable Grant Payments,West and Southern Africa,Overseas Development Institute,204822-108,"408,434.17",
DFID,DFID,31/08/2020,Project delivery costs – supplier services,Policy Division,DEPARTMENT FOR EDUCATION,204695-114,"18,654.30",
DFID,DFID,28/08/2020,Aid Programme - Accountable Grant Payments,Middle East and North Africa Division,Geneva Centre for the Democratic Control of Armed Forces,300611-102,"134,436.82",
DFID,DFID,11/08/2020,Training - Course Fees,PRH Cabinet,KAPLAN FINANCIAL LTD,205044-101,894.29,
DFID,DFID,11/08/2020,Training - Course Fees,PRH Cabinet,KAPLAN FINANCIAL LTD,205044-101,920.83,
DFID,DFID,17/08/2020,Aid Programme - Core contributions,"Humanitarian, Security and Migration Division",UN OCHA,300339-102,"19,000,000.00",
DFID,DFID,25/08/2020,Aid Programme - Voluntary contributions,Middle East and North Africa Division,UN OCHA,300528-101,"10,000,000.00",
DFID,DFID,28/08/2020,Aid Programme - Voluntary contributions,East and Central Africa,FAO,204019-110,"1,515,148.00",
DFID,DFID,21/08/2020,Aid Programme - Voluntary contributions,East and Central Africa,WFP CONTRIBUTIONS UNIT,204888-102,"1,047,239.12",
DFID,DFID,21/08/2020,Project delivery costs – supplier services,"Humanitarian, Security and Migration Division",WFP CONTRIBUTIONS UNIT,301150-124,"35,074.00",
DFID,DFID,05/08/2020,Aid Programme - Refugee Relief Payments,East and Central Africa,WFP CONTRIBUTIONS UNIT,205206-102,"15,000,000.00",
DFID,DFID,12/08/2020,Aid Programme - Voluntary contributions,Middle East and North Africa Division,WFP CONTRIBUTIONS UNIT,300540-105,"1,000,000.00",
DFID,DFID,05/08/2020,Aid Programme - Refugee Relief Payments,East and Central Africa,WFP CONTRIBUTIONS UNIT,205206-102,"186,115.00",
DFID,DFID,20/08/2020,Aid Programme - Voluntary contributions,West and Southern Africa,WFP CONTRIBUTIONS UNIT,300972-101,"1,900,000.00",
DFID,DFID,18/08/2020,Aid Programme - Core contributions,"Humanitarian, Security and Migration Division",WFP CONTRIBUTIONS UNIT,300339-103,"3,000,000.00",
DFID,DFID,07/08/2020,Telephone Usage & services,Business Solutions Division Level,KUBE NETWORKS LTD,200002-130,"1,137.27",
DFID,DFID,18/08/2020,Aid Programme - Voluntary contributions,Economic Development Division,FINANCIAL SECTOR DEEPENING,205238-111,"350,000.00",
DFID,DFID,19/08/2020,Research and development costs - supplier services,Research and Evidence Division,London School Of Economics And Political Science,204428-102,"390,091.09",
DFID,DFID,04/08/2020,Project delivery costs – supplier services,Economic Development Division,London School Of Economics And Political Science,205219-101,"237,476.62",
DFID,DFID,04/08/2020,Project delivery costs – supplier services,Economic Development Division,London School Of Economics And Political Science,205219-101,"1,180,513.28",
DFID,DFID,04/08/2020,Project delivery costs – supplier services,Economic Development Division,London School Of Economics And Political Science,205219-101,"1,720,965.89",
DFID,DFID,04/08/2020,Project delivery costs – supplier services,Research and Evidence Division,London School Of Economics And Political Science,205219-102,"485,400.64",
DFID,DFID,04/08/2020,Project delivery costs – supplier services,Research and Evidence Division,London School Of Economics And Political Science,205219-102,"332,965.28",
DFID,DFID,04/08/2020,Project delivery costs – supplier services,Research and Evidence Division,London School Of Economics And Political Science,205219-102,"66,980.59",
DFID,DFID,06/08/2020,Aid Programme - Accountable Grant Payments,Policy Division,UNITED NATIONS FOUNDATION,204333-102,"569,216.68",
DFID,DFID,05/08/2020,Medical/Health Services,West and Southern Africa,Nyaho Medical Centre,100096-101,"1,412.65",
DFID,DFID,07/08/2020,Aid Programme - Voluntary contributions,Middle East and North Africa Division,UNFPA,300561-102,"332,660.00",
DFID,DFID,17/08/2020,Aid Programme - Voluntary contributions,Middle East and North Africa Division,UNHCR,300404-102,"1,604,237.20",
DFID,DFID,14/08/2020,Aid Programme - Core contributions,"Humanitarian, Security and Migration Division",UNHCR,300339-104,"19,500,000.00",
DFID,DFID,11/08/2020,Project delivery costs – supplier services,Climate and Environment Division,KPMG LLP,201724-102,"107,105.82",
DFID,DFID,26/08/2020,Aid Programme - Voluntary contributions,Policy Division,WHO (GENEVA),204691-106,"157,638.50",
DFID,DFID,10/08/2020,Aid Programme - Voluntary contributions,West and Southern Africa,WHO (GENEVA),300495-109,"311,181.00",
DFID,DFID,20/08/2020,Aid Programme - Voluntary contributions,Middle East and North Africa Division,WHO (GENEVA),300097-101,"4,000,000.00",
DFID,DFID,26/08/2020,Aid Programme - Core contributions,"Humanitarian, Security and Migration Division",WHO (GENEVA),300339-106,"3,500,000.00",
DFID,DFID,20/08/2020,Aid Programme - Voluntary contributions,East and Central Africa,WHO (GENEVA),205242-101,"2,962,816.00",
DFID,DFID,12/08/2020,Subscriptions,Communications Division,THE PRESS ASSOCIATION,100197-101,680.90,
DFID,DFID,28/08/2020,Research and development costs - supplier services,Research and Evidence Division,Chemonics,300100-103,"16,879.52",
DFID,DFID,14/08/2020,Project delivery costs – supplier services,Middle East and North Africa Division,Chemonics,300460-103,"1,110,788.00",
DFID,DFID,26/08/2020,Aid Programme - Voluntary contributions,"Asia, Caribbean and Overseas Territories",Supplier Name withheld,300420-102,"2,000,000.00",
DFID,DFID,19/08/2020,Aid Programme - Core contributions,"Humanitarian, Security and Migration Division",IOM,300339-107,"2,200,000.00",
DFID,DFID,21/08/2020,Aid Programme - Accountable Grant Payments,Research and Evidence Division,Results for Development Institute,201879-110,"195,992.42",
DFID,DFID,27/08/2020,Aid Programme - Accountable Grant Payments,Research and Evidence Division,Results for Development Institute,201879-114,"213,718.89",
DFID,DFID,24/08/2020,Aid Programme - Accountable Grant Payments,Policy Division,Results for Development Institute,201879-111,"67,170.30",
DFID,DFID,26/08/2020,Project delivery costs – supplier services,East and Central Africa,IPE Global Ltd,300553-103,"11,681.86",
DFID,DFID,13/08/2020,Project delivery costs – supplier services,Policy Division,IPE Global Ltd,203166-105,"118,125.00",
DFID,DFID,13/08/2020,Aid Programme - Voluntary contributions,Economic Development Division,EFInA,205238-108,"558,625.00",
DFID,DFID,03/08/2020,Aid Programme - Voluntary contributions,East and Central Africa,UNEP,205115-102,"580,870.00",
DFID,DFID,19/08/2020,Aid Programme - Core contributions,"Humanitarian, Security and Migration Division",THE INTERNATIONAL COMMITTEE OF THE RED CROSS (ICRC),300395-101,"44,100,000.00",
DFID,DFID,07/08/2020,Aid Programme - Accountable Grant Payments,East and Central Africa,EISA,300589-104,"49,859.95",
DFID,DFID,27/08/2020,Aid Programme - Core contributions,Research and Evidence Division,WELLCOME TRUST,204765-103,"2,479,043.87",
DFID,DFID,26/08/2020,Aid Programme - Core contributions,Research and Evidence Division,WELLCOME TRUST,204765-103,"5,552.42",
DFID,DFID,17/08/2020,Aid Programme - Humanitarian Material Relief Assistance and Services,"Asia, Caribbean and Overseas Territories",WORLD HEALTH ORGANISATION (WHO),204603-104,"794,285.70",
DFID,DFID,06/08/2020,Aid Programme - Core contributions,East and Central Africa,WORLD HEALTH ORGANISATION (WHO),300427-107,"180,790.00",
DFID,DFID,05/08/2020,Project delivery costs – supplier services,Policy Division,Ecorys UK Ltd,205249-102,"183,154.85",
DFID,DFID,03/08/2020,Project delivery costs – supplier services,Middle East and North Africa Division,Ecorys UK Ltd,300359-101,"33,782.03",
DFID,DFID,07/08/2020,Project delivery costs – supplier services,West and Southern Africa,Ecorys UK Ltd,300024-101,"4,460.00",
DFID,DFID,07/08/2020,Project delivery costs – supplier services,West and Southern Africa,Ecorys UK Ltd,300024-101,"19,277.21",
DFID,DFID,10/08/2020,Project delivery costs – supplier services,West and Southern Africa,Ecorys UK Ltd,300024-101,"18,503.85",
DFID,DFID,06/08/2020,Project delivery costs – supplier services,East and Central Africa,Ecorys UK Ltd,300589-105,"59,921.10",
DFID,DFID,04/08/2020,Aid Programme - Accountable Grant Payments,"Humanitarian, Security and Migration Division",Center for Global Development,300612-102,"33,357.43",
DFID,DFID,21/08/2020,Aid Programme - Accountable Grant Payments,Economic Development Division,Carnegie Endowment for International Peace,300626-101,"174,000.00",
DFID,DFID,10/08/2020,Project delivery costs – supplier services,East and Central Africa,BMB Mott Macdonald,204903-105,"757,263.15",
DFID,DFID,31/08/2020,Accountable Grant Payments,"Asia, Caribbean and Overseas Territories",Manusher Jonno Foundation,204195-101,"1,700,000.00",
DFID,DFID,28/08/2020,Aid Programme - Accountable Grant Payments,"Asia, Caribbean and Overseas Territories",UCEP - Underpriveliged Childrens Education Programs,203870-104,"345,000.00",
DFID,DFID,25/08/2020,Aid Programme - Accountable Grant Payments,"Asia, Caribbean and Overseas Territories",Center for International Forestry Research (CIFOR) (GBP),300185-101,"57,095.00",
DFID,DFID,17/08/2020,Project delivery costs – supplier services,"Asia, Caribbean and Overseas Territories",Cardno Emerging Markets (UK) Ltd,202328-107,"28,636.60",
DFID,DFID,31/08/2020,Project delivery costs – supplier services,"Asia, Caribbean and Overseas Territories",Cardno Emerging Markets (UK) Ltd,202328-107,"39,290.96",
DFID,DFID,26/08/2020,Aid Programme - Accountable Grant Payments,"Asia, Caribbean and Overseas Territories",National Democratic Institute (Ndi),203454-102,"615,698.00",
DFID,DFID,18/08/2020,Aid Programme - Accountable Grant Payments,Middle East and North Africa Division,National Democratic Institute (Ndi),300802-103,"123,516.00",
DFID,DFID,07/08/2020,Aid Programme - Accountable Grant Payments,"Asia, Caribbean and Overseas Territories",THE GURKHA WELFARE SCHEME,203187-103,"77,690.70",
DFID,DFID,31/08/2020,Aid Programme - Voluntary contributions,Policy Division,Access to Medicine Foundation,204689-101,"500,000.00",
DFID,DFID,11/08/2020,Aid Programme - Accountable Grant Payments,West and Southern Africa,IFPRI,300113-105,"230,293.29",
DFID,DFID,12/08/2020,Aid Programme - Voluntary contributions,Middle East and North Africa Division,International Organization for Migration,300404-101,"1,592,569.32",
DFID,DFID,27/08/2020,Aid Programme - Core contributions,Research and Evidence Division,Drugs for Neglected Diseases Initiative,300341-103,"4,500,000.00",
DFID,DFID,14/08/2020,Project delivery costs – supplier services,East and Central Africa,Cowatersogema International Inc,300553-101,"148,925.62",
DFID,DFID,19/08/2020,Project delivery costs – supplier services,Economic Development Division,Palladium International,202939-121,"88,233.42",
DFID,DFID,19/08/2020,Project delivery costs – supplier services,Economic Development Division,Palladium International,202939-121,"158,045.12",
DFID,DFID,28/08/2020,Project delivery costs – supplier services,West and Southern Africa,Palladium International,300495-101,"528,670.70",
DFID,DFID,04/08/2020,Project delivery costs – supplier services,West and Southern Africa,Palladium International,300495-101,"567,131.84",
DFID,DFID,04/08/2020,Project delivery costs – supplier services,West and Southern Africa,Palladium International,300495-101,"80,636.00",
DFID,DFID,21/08/2020,Project delivery costs – supplier services,West and Southern Africa,Palladium International,300035-104,"224,141.48",
DFID,DFID,19/08/2020,Project delivery costs – supplier services,"Asia, Caribbean and Overseas Territories",Palladium International,300435-105,"231,310.08",
DFID,DFID,10/08/2020,Project delivery costs – supplier services,Economic Development Division,Palladium International,300291-101,"53,545.66",
DFID,DFID,07/08/2020,Professional member subscriptions,Policy Division,Chatham House,100045-101,"4,500.00",
DFID,DFID,14/08/2020,Aid Programme - Voluntary contributions,Economic Development Division,The World Bank (EFO),300452-118,"50,000.00",
DFID,DFID,12/08/2020,Project delivery costs – supplier services,Policy Division,Montrose International,205027-103,"25,672.00",
DFID,DFID,07/08/2020,Aid Programme - Accountable Grant Payments,"Asia, Caribbean and Overseas Territories",INTERNATIONAL IDEA,300009-103,"117,159.53",
DFID,DFID,11/08/2020,Auditors Remuneration & Expenses - Cash,West and Southern Africa,Baker Tilly Nigeria,203674-107,"14,028.39",
DFID,DFID,20/08/2020,Postage Costs,Group Operations,Royal Mail Group Ltd,203717-101,787.00,
DFID,DFID,04/08/2020,Research and development costs - supplier services,Research and Evidence Division,Tim Leyland,300361-102,"1,137.75",
DFID,DFID,11/08/2020,Aid Programme - Accountable Grant Payments,"Asia, Caribbean and Overseas Territories",International Institute for Environment and Development (IIED),204794-105,"36,626.00",
DFID,DFID,27/08/2020,Aid Programme - Accountable Grant Payments,"Asia, Caribbean and Overseas Territories",International Institute for Environment and Development (IIED),204794-105,"63,699.00",
DFID,DFID,24/08/2020,Aid Programme - Accountable Grant Payments,Research and Evidence Division,Program for Appropriate Technology in Health,300341-113,"451,815.27",
DFID,DFID,17/08/2020,Aid Programme - Voluntary contributions,West and Southern Africa,OHCHR,202416-116,"656,000.00",
DFID,DFID,04/08/2020,Aid Programme - Core contributions,Economic Development Division,SG KLEINWORT HAMBROS BANK & TRUST LTD GBP,300351-102,"1,557,000.00",
DFID,DFID,10/08/2020,Aid Programme - Accountable Grant Payments,East and Central Africa,DANISH REFUGEE COUNCIL,204019-107,"25,759.78",
DFID,DFID,17/08/2020,Aid Programme - Accountable Grant Payments,"Humanitarian, Security and Migration Division",DANISH REFUGEE COUNCIL,205255-104,"336,532.00",
DFID,DFID,24/08/2020,Aid Programme - Accountable Grant Payments,Middle East and North Africa Division,DANISH REFUGEE COUNCIL,300561-103,"323,156.16",
DFID,DFID,18/08/2020,Aid Programme - Accountable Grant Payments,Middle East and North Africa Division,Supplier Name withheld,300086-101,"1,715,661.63",
DFID,DFID,17/08/2020,Aid Programme - Accountable Grant Payments,"Humanitarian, Security and Migration Division",DANISH REFUGEE COUNCIL,205255-104,"25,682.00",
DFID,DFID,21/08/2020,Aid Programme - Humanitarian Material Relief Assistance and Services,"Humanitarian, Security and Migration Division",DANISH REFUGEE COUNCIL,301150-117,"600,000.00",
DFID,DFID,31/08/2020,Aid Programme - Accountable Grant Payments,"Humanitarian, Security and Migration Division",DANISH REFUGEE COUNCIL,300461-103,"1,007,068.54",
DFID,DFID,06/08/2020,Project delivery costs – supplier services,East and Central Africa,HERA,300107-105,"99,997.20",
DFID,DFID,07/08/2020,Aid Programme - Accountable Grant Payments,Policy Division,Clinton Health Access Initiative,300380-101,"1,047,670.67",
DFID,DFID,18/08/2020,Aid Programme - Accountable Grant Payments,"Asia, Caribbean and Overseas Territories",The Asia Foundation (GBP),203385-103,"54,536.00",
DFID,DFID,25/08/2020,Aid Programme - Accountable Grant Payments,Research and Evidence Division,The Asia Foundation (GBP),300100-102,"369,225.00",
DFID,DFID,21/08/2020,Aid Programme - Accountable Grant Payments,"Asia, Caribbean and Overseas Territories",The Asia Foundation (GBP),300006-103,"80,040.00",
DFID,DFID,24/08/2020,Aid Programme - Accountable Grant Payments,"Asia, Caribbean and Overseas Territories",The Asia Foundation (GBP),203385-106,"106,273.00",
DFID,DFID,24/08/2020,Data Network - land lines,Business Solutions Division Level,Virgin Media Business,200002-217,"28,946.03",Data Network - land lines
DFID,DFID,24/08/2020,Aid Programme - Accountable Grant Payments,East and Central Africa,Norwegian Refugee Council,204019-107,"52,343.32",
DFID,DFID,24/08/2020,Aid Programme - Accountable Grant Payments,East and Central Africa,Norwegian Refugee Council,204019-107,"46,207.76",
DFID,DFID,17/08/2020,Aid Programme - Accountable Grant Payments,Middle East and North Africa Division,Norwegian Refugee Council,300537-103,"292,404.00",
DFID,DFID,27/08/2020,Aid Programme - Accountable Grant Payments,East and Central Africa,Norwegian Refugee Council,205128-108,"182,114.72",
DFID,DFID,27/08/2020,Aid Programme - Accountable Grant Payments,East and Central Africa,Norwegian Refugee Council,205128-109,"868,419.88",
DFID,DFID,27/08/2020,Aid Programme - Accountable Grant Payments,East and Central Africa,Norwegian Refugee Council,205128-103,"3,949,465.40",
DFID,DFID,04/08/2020,Aid Programme - Accountable Grant Payments,East and Central Africa,Education Development Trust,204463-108,"4,592,499.15",
DFID,DFID,03/08/2020,Aid Programme - Core contributions,West and Southern Africa,   THE WORLD BANK,300161-105,"400,000.00",
DFID,DFID,17/08/2020,Research and development costs - supplier services,Research and Evidence Division,IMC Worldwide Ltd,204806-107,"20,598.45",
DFID,DFID,18/08/2020,Project delivery costs – supplier services,Economic Development Division,IMC Worldwide Ltd,300789-107,"168,043.56",
DFID,DFID,31/08/2020,Project delivery costs – supplier services,Economic Development Division,IMC Worldwide Ltd,205181-118,"7,743.73",
DFID,DFID,06/08/2020,Project delivery costs – supplier services,Economic Development Division,IMC Worldwide Ltd,205181-118,"24,342.07",
DFID,DFID,26/08/2020,Project delivery costs – supplier services,Economic Development Division,IMC Worldwide Ltd,205181-118,"43,589.54",
DFID,DFID,11/08/2020,Project delivery costs – supplier services,Policy Division,IMC Worldwide Ltd,201879-112,"46,391.58",
DFID,DFID,25/08/2020,Project delivery costs – supplier services,"Asia, Caribbean and Overseas Territories",IMC Worldwide Ltd,203427-109,"58,952.47",
DFID,DFID,25/08/2020,Project delivery costs – supplier services,"Asia, Caribbean and Overseas Territories",IMC Worldwide Ltd,203427-109,"3,361.64",
DFID,DFID,10/08/2020,Project delivery costs – supplier services,"Asia, Caribbean and Overseas Territories",IMC Worldwide Ltd,203427-109,"119,581.11",
DFID,DFID,10/08/2020,Project delivery costs – supplier services,"Asia, Caribbean and Overseas Territories",IMC Worldwide Ltd,203427-110,"119,581.10",
DFID,DFID,25/08/2020,Project delivery costs – supplier services,"Asia, Caribbean and Overseas Territories",IMC Worldwide Ltd,203427-110,"3,361.64",
DFID,DFID,25/08/2020,Project delivery costs – supplier services,"Asia, Caribbean and Overseas Territories",IMC Worldwide Ltd,203427-110,"58,952.47",
DFID,DFID,06/08/2020,Project delivery costs – supplier services,Research and Evidence Division,IMC Worldwide Ltd,203844-102,"90,000.00",
DFID,DFID,03/08/2020,Project delivery costs – supplier services,Research and Evidence Division,IMC Worldwide Ltd,203844-102,"100,000.00",
DFID,DFID,03/08/2020,Project delivery costs – supplier services,Research and Evidence Division,IMC Worldwide Ltd,203844-104,"38,346.74",
DFID,DFID,06/08/2020,Project delivery costs – supplier services,Research and Evidence Division,IMC Worldwide Ltd,203844-104,"32,346.10",
DFID,DFID,19/08/2020,Project delivery costs – supplier services,"Asia, Caribbean and Overseas Territories",IMC Worldwide Ltd,204193-105,"106,259.00",
DFID,DFID,26/08/2020,Project delivery costs – supplier services,East and Central Africa,IMC Worldwide Ltd,204019-115,"209,216.77",
DFID,DFID,11/08/2020,Project delivery costs – supplier services,Research and Evidence Division,IMC Worldwide Ltd,201879-106,"216,474.40",
DFID,DFID,10/08/2020,Project delivery costs – supplier services,Research and Evidence Division,IMC Worldwide Ltd,201879-106,"56,426.06",
DFID,DFID,10/08/2020,Project delivery costs – supplier services,Research and Evidence Division,IMC Worldwide Ltd,201879-106,"30,284.40",
DFID,DFID,07/08/2020,Project delivery costs – supplier services,Climate and Environment Division,IMC Worldwide Ltd,300705-110,"18,911.06",
DFID,DFID,13/08/2020,Project delivery costs – supplier services,West and Southern Africa,IMC Worldwide Ltd,205195-102,"550,044.79",
DFID,DFID,25/08/2020,Project delivery costs – supplier services,"Asia, Caribbean and Overseas Territories",IMC Worldwide Ltd,203186-108,"71,428.00",
DFID,DFID,25/08/2020,Project delivery costs – supplier services,"Asia, Caribbean and Overseas Territories",IMC Worldwide Ltd,203186-109,"94,732.29",
DFID,DFID,07/08/2020,Project delivery costs – supplier services,"Humanitarian, Security and Migration Division",Integrity Research And Consultancy,300461-108,"183,472.28",
DFID,DFID,26/08/2020,Project delivery costs – supplier services,"Asia, Caribbean and Overseas Territories",Integrity Research And Consultancy,203264-103,"29,484.79",
DFID,DFID,19/08/2020,Project delivery costs – supplier services,"Asia, Caribbean and Overseas Territories",Integrity Research And Consultancy,300435-104,"1,978.54",
DFID,DFID,26/08/2020,Project delivery costs – supplier services,East and Central Africa,Integrity Research And Consultancy,205067-101,"50,384.62",
DFID,DFID,11/08/2020,Project delivery costs – supplier services,Policy Division,DAI Global UK Ltd,300467-101,"4,019.89",
DFID,DFID,03/08/2020,Project delivery costs – supplier services,Policy Division,DAI Global UK Ltd,300467-101,"19,824.00",
DFID,DFID,28/08/2020,Project delivery costs – supplier services,Policy Division,DAI Global UK Ltd,300467-101,"6,546.36",
DFID,DFID,20/08/2020,Project delivery costs – supplier services,Policy Division,DAI Global UK Ltd,300467-101,"12,470.00",
DFID,DFID,20/08/2020,Project delivery costs – supplier services,Policy Division,DAI Global UK Ltd,300467-101,"17,191.62",
DFID,DFID,27/08/2020,Project delivery costs – supplier services,Middle East and North Africa Division,DAI Global UK Ltd,300426-103,"458,595.00",
DFID,DFID,21/08/2020,Project delivery costs – supplier services,West and Southern Africa,DAI Global UK Ltd,202585-104,"289,084.00",
DFID,DFID,18/08/2020,Project delivery costs – supplier services,Policy Division,DAI Global UK Ltd,300467-101,"32,891.60",
DFID,DFID,18/08/2020,Project delivery costs – supplier services,Policy Division,DAI Global UK Ltd,300467-101,"14,425.00",
DFID,DFID,14/08/2020,Project delivery costs – supplier services,East and Central Africa,DAI Global UK Ltd,205242-102,"142,341.91",
DFID,DFID,14/08/2020,Project delivery costs – supplier services,East and Central Africa,DAI Global UK Ltd,205242-102,"414,663.90",
DFID,DFID,06/08/2020,Project delivery costs – supplier services,Middle East and North Africa Division,DAI Global UK Ltd,204325-102,"116,095.46",
DFID,DFID,06/08/2020,Project delivery costs – supplier services,Middle East and North Africa Division,DAI Global UK Ltd,204325-102,"87,911.57",
DFID,DFID,06/08/2020,Project delivery costs – supplier services,Middle East and North Africa Division,DAI Global UK Ltd,204325-102,"30,796.60",
DFID,DFID,07/08/2020,Project delivery costs – supplier services,"Asia, Caribbean and Overseas Territories",DAI Global UK Ltd,300392-101,"210,910.00",
DFID,DFID,14/08/2020,Project delivery costs – supplier services,"Asia, Caribbean and Overseas Territories",DAI Global UK Ltd,204989-101,"242,966.67",
DFID,DFID,20/08/2020,Project delivery costs – supplier services,West and Southern Africa,DAI Global UK Ltd,204565-108,"48,798.43",
DFID,DFID,20/08/2020,Project delivery costs – supplier services,Middle East and North Africa Division,DAI Global UK Ltd,205200-102,"30,556.00",
DFID,DFID,18/08/2020,Project delivery costs – supplier services,Policy Division,DAI Global UK Ltd,300467-101,"1,118.00",
DFID,DFID,18/08/2020,Project delivery costs – supplier services,"Humanitarian, Security and Migration Division",DAI Global UK Ltd,205176-106,"26,133.31",
DFID,DFID,31/08/2020,Project delivery costs – supplier services,East and Central Africa,DAI Global UK Ltd,202596-105,"210,259.88",
DFID,DFID,31/08/2020,Project delivery costs – supplier services,East and Central Africa,DAI Global UK Ltd,202596-105,"360,299.48",
DFID,DFID,31/08/2020,Project delivery costs – supplier services,East and Central Africa,DAI Global UK Ltd,202596-105,"107,754.87",
DFID,DFID,31/08/2020,Project delivery costs – supplier services,East and Central Africa,DAI Global UK Ltd,202596-105,"457,105.00",
DFID,DFID,31/08/2020,Project delivery costs – supplier services,East and Central Africa,DAI Global UK Ltd,202596-105,"160,289.38",
DFID,DFID,12/08/2020,Project delivery costs – supplier services,East and Central Africa,DAI Global UK Ltd,202900-102,"336,256.74",
DFID,DFID,31/08/2020,Project delivery costs – supplier services,East and Central Africa,DAI Global UK Ltd,205143-103,"32,096.29",
DFID,DFID,25/08/2020,Project delivery costs – supplier services,"Asia, Caribbean and Overseas Territories",DAI Global UK Ltd,204672-102,"60,000.00",
DFID,DFID,24/08/2020,Project delivery costs – supplier services,"Asia, Caribbean and Overseas Territories",DAI Global UK Ltd,204672-102,"284,342.94",
DFID,DFID,04/08/2020,Project delivery costs – supplier services,Policy Division,DAI Global UK Ltd,300310-105,"5,157.19",
DFID,DFID,18/08/2020,Project delivery costs – supplier services,Policy Division,DAI Global UK Ltd,300310-105,"276,400.80",
DFID,DFID,12/08/2020,Project delivery costs – supplier services,East and Central Africa,DAI Global UK Ltd,202900-107,"5,890.70",
DFID,DFID,24/08/2020,Project delivery costs – supplier services,East and Central Africa,DAI Global UK Ltd,205206-109,"91,753.10",
DFID,DFID,10/08/2020,Project delivery costs – supplier services,West and Southern Africa,DAI Global UK Ltd,204822-101,"1,488,342.58",
DFID,DFID,31/08/2020,Project delivery costs – supplier services,West and Southern Africa,DAI Global UK Ltd,204822-101,"19,003.82",
DFID,DFID,26/08/2020,Project delivery costs – supplier services,West and Southern Africa,DAI Global UK Ltd,203922-101,"563,548.75",
DFID,DFID,20/08/2020,Aid Programme - Voluntary contributions,"Asia, Caribbean and Overseas Territories",International Development Law Organization,203454-108,"463,000.00",
DFID,DFID,25/08/2020,Project delivery costs – supplier services,Policy Division,Sightsavers,205249-101,"1,690,565.00",
DFID,DFID,20/08/2020,Project delivery costs – supplier services,Policy Division,Sightsavers,300397-101,"22,563.28",
DFID,DFID,20/08/2020,Project delivery costs – supplier services,Policy Division,Sightsavers,300397-101,"6,275.84",
DFID,DFID,20/08/2020,Project delivery costs – supplier services,Policy Division,Sightsavers,300397-101,"6,190.88",
DFID,DFID,20/08/2020,Project delivery costs – supplier services,Policy Division,Sightsavers,300397-101,"3,233.32",
DFID,DFID,20/08/2020,Project delivery costs – supplier services,Policy Division,Sightsavers,300397-101,"13,441.21",
DFID,DFID,20/08/2020,Project delivery costs – supplier services,Policy Division,Sightsavers,300397-101,"12,519.73",
DFID,DFID,20/08/2020,Project delivery costs – supplier services,Policy Division,Sightsavers,300397-101,"17,057.67",
DFID,DFID,20/08/2020,Project delivery costs – supplier services,Policy Division,Sightsavers,300397-101,"9,801.42",
DFID,DFID,20/08/2020,Project delivery costs – supplier services,Policy Division,Sightsavers,300397-101,"7,909.61",
DFID,DFID,20/08/2020,Project delivery costs – supplier services,Policy Division,Sightsavers,300397-102,"7,877.66",
DFID,DFID,20/08/2020,Project delivery costs – supplier services,Policy Division,Sightsavers,300397-102,"28,960.55",
DFID,DFID,20/08/2020,Project delivery costs – supplier services,Policy Division,Sightsavers,300397-102,"12,268.48",
DFID,DFID,20/08/2020,Project delivery costs – supplier services,Policy Division,Sightsavers,300397-102,"22,232.21",
DFID,DFID,20/08/2020,Project delivery costs – supplier services,Policy Division,Sightsavers,300397-102,"16,812.98",
DFID,DFID,20/08/2020,Project delivery costs – supplier services,Policy Division,Sightsavers,300397-104,"37,763.95",
DFID,DFID,21/08/2020,Research and development costs - supplier services,Research and Evidence Division,ABT Associates,203052-105,"42,942.69",
DFID,DFID,11/08/2020,Aid Programme - Accountable Grant Payments,East and Central Africa,Marie Stopes International (Msi),202549-113,"199,810.00",
DFID,DFID,18/08/2020,Project delivery costs – supplier services,East and Central Africa,Marie Stopes International (Msi),205241-103,"1,390,514.00",
DFID,DFID,18/08/2020,Project delivery costs – supplier services,East and Central Africa,Marie Stopes International (Msi),205241-104,"1,566,722.00",
DFID,DFID,25/08/2020,Project delivery costs – supplier services,"Asia, Caribbean and Overseas Territories",Marie Stopes International (Msi),202413-104,"785,126.00",
DFID,DFID,06/08/2020,Aid Programme - Accountable Grant Payments,"Asia, Caribbean and Overseas Territories",Marie Stopes International (Msi),203100-106,"276,923.00",
DFID,DFID,14/08/2020,Project delivery costs – supplier services,Policy Division,PATH,204954-102,"32,576.50",
DFID,DFID,12/08/2020,Project delivery costs – supplier services,Policy Division,PATH,204954-102,"9,606.19",
DFID,DFID,12/08/2020,Project delivery costs – supplier services,Policy Division,PATH,204954-102,"7,218.32",
DFID,DFID,12/08/2020,Project delivery costs – supplier services,Policy Division,PATH,204954-102,"10,359.79",
DFID,DFID,12/08/2020,Project delivery costs – supplier services,Policy Division,PATH,204954-102,"10,932.88",
DFID,DFID,12/08/2020,Project delivery costs – supplier services,Policy Division,PATH,204954-102,"21,805.25",
DFID,DFID,12/08/2020,Project delivery costs – supplier services,Policy Division,PATH,204954-102,"23,049.81",
DFID,DFID,12/08/2020,Project delivery costs – supplier services,Policy Division,PATH,204954-102,"26,443.77",
DFID,DFID,12/08/2020,Project delivery costs – supplier services,Policy Division,PATH,204954-102,"5,526.50",
DFID,DFID,12/08/2020,Project delivery costs – supplier services,Policy Division,PATH,204954-102,"8,368.67",
DFID,DFID,12/08/2020,Project delivery costs – supplier services,Policy Division,PATH,204954-102,"1,120.06",
DFID,DFID,07/08/2020,Project delivery costs – supplier services,West and Southern Africa,Nathan Associates,300601-101,"557,150.99",
DFID,DFID,13/08/2020,Project delivery costs – supplier services,West and Southern Africa,Nathan Associates,300601-101,"46,839.46",
DFID,DFID,31/08/2020,Project delivery costs – supplier services,West and Southern Africa,WYG International,300274-101,"408,299.00",
DFID,DFID,18/08/2020,Project delivery costs – supplier services,East and Central Africa,WYG International,300230-105,"228,846.30",
DFID,DFID,13/08/2020,Project delivery costs – supplier services,East and Central Africa,International Planned Parenthood Federation,205241-105,"489,868.56",
DFID,DFID,13/08/2020,Project delivery costs – supplier services,East and Central Africa,International Planned Parenthood Federation,205241-106,"2,852,229.60",
DFID,DFID,13/08/2020,Project delivery costs – supplier services,East and Central Africa,International Planned Parenthood Federation,205241-107,"1,584,833.85",
DFID,DFID,06/08/2020,Project delivery costs – supplier services,Policy Division,Mannion Daniels Limited,202035-107,"55,970.55",
DFID,DFID,06/08/2020,Project delivery costs – supplier services,Policy Division,Mannion Daniels Limited,202035-107,"843,063.10",
DFID,DFID,17/08/2020,Professional Services - Peer Review,East and Central Africa,DNA Economics,300257-102,780.00,
DFID,DFID,12/08/2020,Project delivery costs – supplier services,"Asia, Caribbean and Overseas Territories",KPMG (KASPL),202865-106,"227,380.00",
DFID,DFID,19/08/2020,Project delivery costs – supplier services,"Asia, Caribbean and Overseas Territories",KPMG (KASPL),203908-101,"52,728.00",
DFID,DFID,04/08/2020,Accountable Grant Payments,"Asia, Caribbean and Overseas Territories",Int Foundation for Electoral System,203487-102,"188,152.00",
DFID,DFID,04/08/2020,Project delivery costs – supplier services,"Asia, Caribbean and Overseas Territories",Pricewaterhousecoopers Pvt Ltd,202927-103,"17,923.00",
DFID,DFID,06/08/2020,Project delivery costs – supplier services,"Asia, Caribbean and Overseas Territories",Pricewaterhousecoopers Pvt Ltd,202927-103,"11,949.00",
DFID,DFID,28/08/2020,Project delivery costs – supplier services,"Asia, Caribbean and Overseas Territories",Pricewaterhousecoopers Pvt Ltd,204135-101,"753,343.24",
DFID,DFID,28/08/2020,Project delivery costs – supplier services,"Asia, Caribbean and Overseas Territories",Pricewaterhousecoopers Pvt Ltd,204135-102,"28,976.76",
DFID,DFID,04/08/2020,Project delivery costs – supplier services,"Asia, Caribbean and Overseas Territories",Pricewaterhousecoopers Pvt Ltd,203427-103,"54,959.00",
DFID,DFID,07/08/2020,Research and development costs - supplier services,Research and Evidence Division,Pricewaterhousecoopers Limited (Kenya3),204570-106,"41,570.52",
DFID,DFID,28/08/2020,Research and development costs - supplier services,Research and Evidence Division,Pricewaterhousecoopers Limited (Kenya3),204570-106,"616,359.03",
DFID,DFID,21/08/2020,Project delivery costs – supplier services,East and Central Africa,American Institute For Research,300249-104,684.20,
DFID,DFID,13/08/2020,Aid Programme - Accountable Grant Payments,West and Southern Africa,Absolute Return for Kids (ARK),205234-111,"69,245.00",
DFID,DFID,13/08/2020,Aid Programme - Voluntary contributions,Middle East and North Africa Division,Deutsche Gesellschaft fuer Internationale Zusammenarbeit (GIZ) GmbH,300772-101,"403,844.63",
DFID,DFID,03/08/2020,Aid Programme - Accountable Grant Payments,West and Southern Africa,SNV Netherlands Development Organisation,204856-108,"239,803.00",
DFID,DFID,13/08/2020,Aid Programme - Accountable Grant Payments,"Asia, Caribbean and Overseas Territories",Idara-e-Taleem-o-Aagahi (ITA),202697-113,"160,935.00",
DFID,DFID,11/08/2020,Aid Programme - Accountable Grant Payments,"Humanitarian, Security and Migration Division",UK-Med,202878-103,"489,873.00",
DFID,DFID,17/08/2020,Project delivery costs – supplier services,"Humanitarian, Security and Migration Division",UK-Med,301150-105,"131,966.51",
DFID,DFID,27/08/2020,Project delivery costs – supplier services,"Humanitarian, Security and Migration Division",UK-Med,205176-106,"7,913.85",
DFID,DFID,27/08/2020,Project delivery costs – supplier services,"Humanitarian, Security and Migration Division",UK-Med,205176-106,"10,285.63",
DFID,DFID,28/08/2020,Aid Programme - Voluntary contributions,Middle East and North Africa Division,International Labour Organization,301222-101,"278,060.00",
DFID,DFID,17/08/2020,Aid Programme - Partnership Programme Arrangements,Research and Evidence Division,Shell Foundation,300632-101,"674,149.00",
DFID,DFID,06/08/2020,Aid Programme - Accountable Grant Payments,Policy Division,Guttmacher Institute,203177-101,"448,142.00",
DFID,DFID,20/08/2020,Aid Programme - Accountable Grant Payments,"Asia, Caribbean and Overseas Territories",People in Need,300462-101,"13,112.55",
DFID,DFID,20/08/2020,Aid Programme - Accountable Grant Payments,Middle East and North Africa Division,People in Need,300561-101,"249,056.62",
DFID,DFID,25/08/2020,Aid Programme - Other Financial Aid to Government,"Asia, Caribbean and Overseas Territories",St Helena Corporate Finance,300806-101,"8,844,503.00",
DFID,DFID,25/08/2020,Aid Programme - Other Financial Aid to Government,"Asia, Caribbean and Overseas Territories",St Helena Corporate Finance,300806-102,"1,155,497.00",
DFID,DFID,05/08/2020,Aid Programme - Other Financial Aid to Government,"Asia, Caribbean and Overseas Territories",Tristan da Cunha Finance Department,300584-101,"159,761.00",
DFID,DFID,10/08/2020,Computer software maintenance,BSD Service Centre,Softcat Ltd,300328-101,"9,009.22",
DFID,DFID,27/08/2020,Aid Programme - Accountable Grant Payments,Research and Evidence Division,Energy Saving Trust,300111-101,"294,152.92",
DFID,DFID,28/08/2020,Aid Programme - Accountable Grant Payments,Research and Evidence Division,Energy Saving Trust,300111-101,"407,031.29",
DFID,DFID,28/08/2020,Legal costs,Policy Division,Marriott Davies Yapp LLP T/A Mdy Legal,300791-103,"3,722.40",
DFID,DFID,28/08/2020,Legal costs,Policy Division,Marriott Davies Yapp LLP T/A Mdy Legal,300791-103,"4,737.60",
DFID,DFID,06/08/2020,Aid Programme - Other Financial Aid to Government,"Asia, Caribbean and Overseas Territories",INDECOM Jamaica,300970-103,"189,150.00",
DFID,DFID,06/08/2020,Aid Programme - Accountable Grant Payments,East and Central Africa,IMPACT Initiatives,204019-136,"295,118.00",
DFID,DFID,03/08/2020,Aid Programme - Voluntary contributions,"Humanitarian, Security and Migration Division",IMPACT Initiatives,300339-109,"105,000.00",
DFID,DFID,20/08/2020,Aid Programme - Accountable Grant Payments,Economic Development Division,Namati,204252-132,"159,142.14",
DFID,DFID,10/08/2020,Fund monies to be managed and dispersed by the supplier,Policy Division,PWC Gec Client Account,204766-101,"11,541,629.00",
DFID,DFID,27/08/2020,Project delivery costs – supplier services,"Asia, Caribbean and Overseas Territories",WSP US Solutions Inc.,204857-106,"42,832.23",
DFID,DFID,13/08/2020,Project delivery costs – supplier services,"Asia, Caribbean and Overseas Territories",WSP US Solutions Inc.,203426-102,"97,754.00",
DFID,DFID,25/08/2020,Project delivery costs – supplier services,"Asia, Caribbean and Overseas Territories",WSP US Solutions Inc.,203426-102,"87,288.00",
DFID,DFID,21/08/2020,Aid Programme - Voluntary contributions,Economic Development Division,CDC Group plc,202939-120,"729,571.32",
DFID,DFID,13/08/2020,Aid Programme - Non Grant Financial contributions,Economic Development Division,CDC Group plc,202939-124,"394,577.42",
DFID,DFID,21/08/2020,Aid Programme - Non Grant Financial contributions,Economic Development Division,CDC Group plc,202939-125,"187,500.00",
DFID,DFID,13/08/2020,Aid Programme - Non Grant Financial contributions,Economic Development Division,CDC Group plc,202939-125,"729,571.32",
DFID,DFID,18/08/2020,Project delivery costs – supplier services,Economic Development Division,The Boston Consulting Group UK LLP,301188-101,"66,078.00",
DFID,DFID,18/08/2020,Project delivery costs – supplier services,Economic Development Division,The Boston Consulting Group UK LLP,301188-101,"53,220.00",
DFID,DFID,07/08/2020,Project delivery costs – supplier services,East and Central Africa,HMRC,204479-106,"21,157.06",
DFID,DFID,12/08/2020,Contract & Agency Staff,Finance and Corporate Performance Division,Search Consultancy Ltd,202836-101,838.51,
DFID,DFID,18/08/2020,Contract & Agency Staff,Finance and Corporate Performance Division,Search Consultancy Ltd,202836-101,"1,001.56",
DFID,DFID,05/08/2020,Contract & Agency Staff,Finance and Corporate Performance Division,Search Consultancy Ltd,202836-101,"1,024.85",
DFID,DFID,10/08/2020,Aid Programme - Voluntary contributions,Policy Division,Aids Fonds - STOP AIDS NOW! - Soa Aids Nederland,203325-101,"500,000.00",
DFID,DFID,27/08/2020,Aid Programme - Accountable Grant Payments,Policy Division,Oxford University,300055-117,"126,820.55",
DFID,DFID,27/08/2020,Aid Programme - Voluntary contributions,"Asia, Caribbean and Overseas Territories",British Council Burma,204661-105,"750,000.00",
DFID,DFID,14/08/2020,Aid Programme - Accountable Grant Payments,Research and Evidence Division,GSMA Mobile for Development Foundation Inc,300644-104,"454,621.07",
DFID,DFID,07/08/2020,Aid Programme - Accountable Grant Payments,Research and Evidence Division,GSMA Mobile for Development Foundation Inc,203804-106,"138,093.32",
DFID,DFID,10/08/2020,Aid Programme - Partnership Programme Arrangements,Research and Evidence Division,GSMA Mobile for Development Foundation Inc,203804-111,"1,758,903.90",
DFID,DFID,07/08/2020,Aid Programme - Accountable Grant Payments,Research and Evidence Division,GSMA Mobile for Development Foundation Inc,300446-101,"1,334,912.15",
DFID,DFID,24/08/2020,Aid Programme - Other Financial Aid to Government,"Asia, Caribbean and Overseas Territories","Ministry of Finance and Planning Jamaica, Financial Investigation Division",300970-106,"21,250.00",
DFID,DFID,20/08/2020,Aid Programme - Poverty Reduction Budget Support,"Asia, Caribbean and Overseas Territories",Pakistan Khyber Pakhtunkhwa Education Sector Programme,202328-101,"5,250,000.00",
DFID,DFID,10/08/2020,Aid Programme - Accountable Grant Payments,Economic Development Division,International Budget Partnership,300157-108,"200,355.00",
DFID,DFID,06/08/2020,Aid Programme - Accountable Grant Payments,Economic Development Division,International Budget Partnership,300157-103,"174,726.00",
DFID,DFID,27/08/2020,Aid Programme - Accountable Grant Payments,"Asia, Caribbean and Overseas Territories",China Agricultural University,203174-101,"56,459.00",
DFID,DFID,18/08/2020,Aid Programme - Accountable Grant Payments,West and Southern Africa,Catholic Relief Services - USCCB,300067-111,"125,742.00",
DFID,DFID,10/08/2020,Aid Programme - Voluntary contributions,"Asia, Caribbean and Overseas Territories",Supplier Name withheld,300420-102,"5,000,000.00",
DFID,DFID,14/08/2020,Subscriptions,Communications Division,Intelogy Limited,100197-101,"1,584.00",
DFID,DFID,11/08/2020,Subscriptions,Communications Division,Intelogy Limited,100197-101,"1,584.00",
DFID,DFID,20/08/2020,Aid Programme - Accountable Grant Payments,West and Southern Africa,Deutsche Welthungerhilfe,300067-107,"248,822.67",
DFID,DFID,20/08/2020,Data Network - land lines,Business Solutions Division Level,Liquid Telecommunications Rwanda Ltd,200002-121,"1,011.56",
DFID,DFID,20/08/2020,Data Network - land lines,Business Solutions Division Level,Liquid Telecommunications Rwanda Ltd,203329-102,"2,360.30",
DFID,DFID,11/08/2020,Aid Programme - Accountable Grant Payments,East and Central Africa,CANADEM,204019-107,"26,053.03",
DFID,DFID,21/08/2020,Aid Programme - Humanitarian Material Relief Assistance and Services,"Humanitarian, Security and Migration Division",CANADEM,301150-102,"9,920.64",
DFID,DFID,21/08/2020,Aid Programme - Humanitarian Material Relief Assistance and Services,"Humanitarian, Security and Migration Division",CANADEM,301150-102,"8,127.35",
DFID,DFID,21/08/2020,Aid Programme - Humanitarian Material Relief Assistance and Services,"Humanitarian, Security and Migration Division",CANADEM,301150-102,"5,021.15",
DFID,DFID,21/08/2020,Aid Programme - Humanitarian Material Relief Assistance and Services,"Humanitarian, Security and Migration Division",CANADEM,301150-102,"8,532.99",
DFID,DFID,25/08/2020,Aid Programme - Humanitarian Material Relief Assistance and Services,"Humanitarian, Security and Migration Division",CANADEM,301150-102,"3,617.92",
DFID,DFID,19/08/2020,Aid Programme - Humanitarian Material Relief Assistance and Services,Middle East and North Africa Division,CANADEM,204516-103,"11,614.98",
DFID,DFID,19/08/2020,Aid Programme - Accountable Grant Payments,"Humanitarian, Security and Migration Division",CANADEM,205176-107,"19,387.10",
DFID,DFID,04/08/2020,Project delivery costs – supplier services,West and Southern Africa,CANADEM,300719-105,"30,273.35",
DFID,DFID,21/08/2020,Aid Programme - Accountable Grant Payments,West and Southern Africa,CANADEM,300832-104,"12,294.22",
DFID,DFID,21/08/2020,Aid Programme - Accountable Grant Payments,West and Southern Africa,CANADEM,300832-104,"21,767.75",
DFID,DFID,13/08/2020,Aid Programme - Humanitarian Material Relief Assistance and Services,Middle East and North Africa Division,RedR Australia,300726-104,"21,708.74",
DFID,DFID,12/08/2020,Aid Programme - Accountable Grant Payments,"Asia, Caribbean and Overseas Territories",Health And Nutrition Development Society - (HANDS),300238-106,"87,300.00",
DFID,DFID,05/08/2020,Data Network - land lines,Business Solutions Division Level,Annodata Business Systems Limited,200002-124,"1,125.00",
DFID,DFID,24/08/2020,Telephone Usage & services,West and Southern Africa,Emerging Markets Telecommunications Services Ltd,101622-106,"2,855.62",
DFID,DFID,12/08/2020,other information and communication technologies,Business Solutions Division Level,Kainos Software Limited,200002-215,598.40,
DFID,DFID,05/08/2020,other information and communication technologies,Business Solutions Division Level,Kainos Software Limited,200002-105,"6,943.17",
DFID,DFID,19/08/2020,Aid Programme - Accountable Grant Payments,West and Southern Africa,Africa Centre for Energy,204918-106,"23,157.46",
DFID,DFID,18/08/2020,Other ICT,Business Solutions Division Level,Leidos Innovations UK,200005-121,"27,606.40",
DFID,DFID,14/08/2020,Project delivery costs – supplier services,East and Central Africa,KPMG Advisory Limited,204804-102,"160,341.72",
DFID,DFID,14/08/2020,Fund monies to be managed and dispersed by the supplier,East and Central Africa,KPMG Advisory Limited,204804-103,"16,330.00",
DFID,DFID,14/08/2020,Fund monies to be managed and dispersed by the supplier,East and Central Africa,KPMG Advisory Limited,204804-102,"146,970.00",
DFID,DFID,12/08/2020,Aid Programme - Humanitarian Material Relief Assistance and Services,"Asia, Caribbean and Overseas Territories",UNOPS-HQ,205268-106,"2,412,502.55",
DFID,DFID,12/08/2020,Aid Programme - Refugee Relief Payments,"Asia, Caribbean and Overseas Territories",UNOPS-HQ,205268-112,"2,531,497.45",
DFID,DFID,21/08/2020,Aid Programme - Challenge Fund payments,Research and Evidence Division,Innovate UK - Technology Strategy Board,203067-102,"59,880.20",
DFID,DFID,21/08/2020,Aid Programme - Challenge Fund payments,Research and Evidence Division,Innovate UK - Technology Strategy Board,203067-102,"618,789.05",
DFID,DFID,21/08/2020,Aid Programme - Challenge Fund payments,Research and Evidence Division,Innovate UK - Technology Strategy Board,203067-102,"109,168.84",
DFID,DFID,24/08/2020,Aid Programme - Challenge Fund payments,Research and Evidence Division,Innovate UK - Technology Strategy Board,203067-102,"948,965.54",
DFID,DFID,13/08/2020,Aid Programme - Accountable Grant Payments,"Asia, Caribbean and Overseas Territories",IKP Knowledge Park,202927-106,"22,295.00",
DFID,DFID,17/08/2020,Data Network - land lines,Business Solutions Division Level,Lintel SL Limited,200002-121,"1,641.57",
DFID,DFID,17/08/2020,Data Network - land lines,Business Solutions Division Level,Lintel SL Limited,203329-102,"3,830.33",
DFID,DFID,31/08/2020,Aid Programme - Accountable Grant Payments,"Asia, Caribbean and Overseas Territories",Karandaaz Pakistan,202495-110,"357,384.00",
DFID,DFID,12/08/2020,Project delivery costs – supplier services,West and Southern Africa,"PRICEWATERHOUSECOOPERS, GHANA",204918-101,"87,738.88",
DFID,DFID,28/08/2020,Project delivery costs – supplier services,"Asia, Caribbean and Overseas Territories",Supplier Name withheld,301019-104,"26,964.00",
DFID,DFID,11/08/2020,Aid Programme - Accountable Grant Payments,Economic Development Division,Land Portal Foundation,204252-130,"86,447.61",
DFID,DFID,14/08/2020,Project delivery costs – supplier services,"Asia, Caribbean and Overseas Territories",KPMG Assurance and Consulting Services LLP,204059-102,"107,904.00",
DFID,DFID,14/08/2020,Project delivery costs – supplier services,"Asia, Caribbean and Overseas Territories",KPMG Assurance and Consulting Services LLP,204059-102,"11,677.00",
DFID,DFID,13/08/2020,Project delivery costs – supplier services,"Asia, Caribbean and Overseas Territories",Delivery Associates Limited,203029-104,"25,000.00",
DFID,DFID,06/08/2020,Aid Programme - Partnership Programme Arrangements,"Asia, Caribbean and Overseas Territories",Development Research Center of the State Council of China,204737-101,"10,900.00",
DFID,DFID,24/08/2020,Aid Programme - Other Financial Aid to Government,"Asia, Caribbean and Overseas Territories",Major Organised Crime & Anti-Corruption Agency,300970-101,"235,279.01",
DFID,DFID,17/08/2020,Aid Programme - Accountable Grant Payments,"Asia, Caribbean and Overseas Territories",Branch office of the International Organization of Open Society Institute Assistance Foundation in Tajikistan,204977-104,"127,723.80",
DFID,DFID,06/08/2020,Aid Programme - Accountable Grant Payments,Economic Development Division,Transparency International UK,300157-109,"168,355.00",
DFID,DFID,19/08/2020,Aid Programme - Accountable Grant Payments,Research and Evidence Division,Community Partners International,205053-126,"17,906.00",
DFID,DFID,06/08/2020,Fund monies to be managed and dispersed by the supplier,Policy Division,Manniondaniels UK Aid Direct,205210-101,"287,211.57",
DFID,DFID,06/08/2020,Fund monies to be managed and dispersed by the supplier,Policy Division,Manniondaniels UK Aid Direct,205210-101,"125,591.18",
DFID,DFID,06/08/2020,Fund monies to be managed and dispersed by the supplier,Policy Division,Manniondaniels UK Aid Direct,205210-101,"269,330.36",
DFID,DFID,06/08/2020,Fund monies to be managed and dispersed by the supplier,Policy Division,Manniondaniels UK Aid Direct,205210-101,"77,021.49",
DFID,DFID,06/08/2020,Fund monies to be managed and dispersed by the supplier,Policy Division,Manniondaniels UK Aid Direct,205210-101,"80,830.21",
DFID,DFID,06/08/2020,Fund monies to be managed and dispersed by the supplier,Policy Division,Manniondaniels UK Aid Direct,203559-101,"15,000.00",
DFID,DFID,06/08/2020,Fund monies to be managed and dispersed by the supplier,Policy Division,Manniondaniels UK Aid Direct,202035-102,"22,372.82",
DFID,DFID,06/08/2020,Fund monies to be managed and dispersed by the supplier,Policy Division,Manniondaniels UK Aid Direct,202035-102,"27,778.00",
DFID,DFID,06/08/2020,Fund monies to be managed and dispersed by the supplier,Policy Division,Manniondaniels UK Aid Direct,202035-102,"78,667.13",
DFID,DFID,06/08/2020,Fund monies to be managed and dispersed by the supplier,Policy Division,Manniondaniels UK Aid Direct,202035-102,"1,119,103.35",
DFID,DFID,06/08/2020,Fund monies to be managed and dispersed by the supplier,Policy Division,Manniondaniels UK Aid Direct,202035-102,"136,028.84",
DFID,DFID,06/08/2020,Fund monies to be managed and dispersed by the supplier,Policy Division,Manniondaniels UK Aid Direct,202035-105,"30,022.93",
DFID,DFID,06/08/2020,Fund monies to be managed and dispersed by the supplier,Policy Division,Manniondaniels UK Aid Direct,202035-105,"33,639.62",
DFID,DFID,06/08/2020,Fund monies to be managed and dispersed by the supplier,Policy Division,Manniondaniels UK Aid Direct,202035-105,"12,593.48",
DFID,DFID,06/08/2020,Fund monies to be managed and dispersed by the supplier,Policy Division,Manniondaniels UK Aid Direct,202035-105,"8,241.46",
DFID,DFID,06/08/2020,Fund monies to be managed and dispersed by the supplier,Policy Division,Manniondaniels UK Aid Direct,202035-106,"46,414.10",
DFID,DFID,06/08/2020,Fund monies to be managed and dispersed by the supplier,Policy Division,Manniondaniels UK Aid Direct,202035-106,"16,300.65",
DFID,DFID,06/08/2020,Fund monies to be managed and dispersed by the supplier,Policy Division,Manniondaniels UK Aid Direct,202035-106,"172,554.12",
DFID,DFID,03/08/2020,Project delivery costs – supplier services,Communications Division,Brandworkz,100197-101,"7,394.40",
DFID,DFID,05/08/2020,Training Providers/Facilitation Services,Research and Evidence Division,"Environmental Health Group, London School Of Hygiene And Tropical Medicine",202331-101,"1,200.00",
DFID,DFID,05/08/2020,Training Providers/Facilitation Services,Research and Evidence Division,"Environmental Health Group, London School Of Hygiene And Tropical Medicine",300836-101,"1,800.00",
DFID,DFID,11/08/2020,Government Car Scheme UK,Top Management Group,Department for Transport - GCS,100232-110,"7,054.53",
DFID,DFID,04/08/2020,Project delivery costs – supplier services,West and Southern Africa,Banco BiG Moçambique SA,204837-105,"4,250.00",
DFID,DFID,21/08/2020,Aid Programme - Accountable Grant Payments,West and Southern Africa,ZAMBIAN FINANCIAL SECTOR DEEPENING LIMITED,203000-105,"323,901.00",
DFID,DFID,17/08/2020,other information and communication technologies,Business Solutions Division Level,NTA Monitor Ltd,200002-187,"1,020.00",
DFID,DFID,27/08/2020,Project delivery costs – supplier services,East and Central Africa,Mckinsey And Company Inc East Africa Pty Ltd,204964-103,"619,544.79",
DFID,DFID,26/08/2020,Training - Course Fees,CPO Business Performance Division,Korn Ferry (UK) Ltd,300776-101,933.00,
DFID,DFID,24/08/2020,Aid Programme - Accountable Grant Payments,West and Southern Africa, CONSERVATION FARMING UNIT,204842-103,"411,909.33",
DFID,DFID,11/08/2020,Aid Programme - Humanitarian Material Relief Assistance and Services,"Humanitarian, Security and Migration Division",Merseyside Fire and Rescue Authority,202878-103,"54,341.77",
DFID,DFID,05/08/2020,other information and communication technologies,Business Solutions Division Level,Teleperformance Ltd,200002-169,555.22,
DFID,DFID,03/08/2020,Facilities Management payments,Economic Development Division,Interserve Facilities Management Limited,205231-123,564.43,
DFID,DFID,10/08/2020,"Repairs, Maint, Alter - Property & Constrct. Services",Group Operations,Interserve Facilities Management Limited,100106-101,"15,197.89",
DFID,DFID,18/08/2020,"Repairs, Maintenance and Alterations – Other Building Costs",Group Operations,Interserve Facilities Management Limited,100106-101,"3,987.14",
DFID,DFID,18/08/2020,"Repairs, Maintenance and Alterations – Other Building Costs",Group Operations,Interserve Facilities Management Limited,100106-101,"3,105.52",
DFID,DFID,10/08/2020,Contract Catering Services,Group Operations,Interserve Facilities Management Limited,203717-101,"19,775.68",
DFID,DFID,03/08/2020,Project delivery costs – supplier services,Group Operations,Interserve Facilities Management Limited,203717-101,"7,274.67",
DFID,DFID,10/08/2020,Facilities Management payments,Group Operations,Interserve Facilities Management Limited,203717-101,"10,996.13",
DFID,DFID,10/08/2020,Cleaning Costs,Group Operations,Interserve Facilities Management Limited,203717-101,"14,607.45",
DFID,DFID,10/08/2020,"Repairs, Maint, Alter - Property & Constrct. Services",Group Operations,Interserve Facilities Management Limited,203717-101,"73,301.74","Repairs, Maint, Alter - Property & Constrct. Services"
DFID,DFID,10/08/2020,Facilities Management payments,Group Operations,Interserve Facilities Management Limited,203717-101,"5,971.75",
DFID,DFID,10/08/2020,"Repairs, Maint, Alter - Removal & waste disposal services",Group Operations,Interserve Facilities Management Limited,203717-101,"1,381.33",
DFID,DFID,10/08/2020,Other Building Products,Group Operations,Interserve Facilities Management Limited,203717-101,"2,318.15",
DFID,DFID,10/08/2020,Facilities Management payments,Group Operations,Interserve Facilities Management Limited,100106-101,"7,878.60",
DFID,DFID,10/08/2020,Cleaning Costs,Group Operations,Interserve Facilities Management Limited,100106-101,"13,768.67",
DFID,DFID,10/08/2020,"Repairs, Maint, Alter - Property & Constrct. Services",Group Operations,Interserve Facilities Management Limited,100106-101,"41,880.01","Repairs, Maint, Alter - Property & Constrct. Services"
DFID,DFID,10/08/2020,Facilities Management payments,Group Operations,Interserve Facilities Management Limited,100106-101,"5,283.45",
DFID,DFID,10/08/2020,Postage Costs,Group Operations,Interserve Facilities Management Limited,100106-101,"1,259.88",
DFID,DFID,25/08/2020,Aid Programme - Accountable Grant Payments,Economic Development Division,Oxford Policy Fellowship,205191-105,"221,021.72",
DFID,DFID,14/08/2020,Aid Programme - Joint programme contribution,Policy Division,Crown Agents Bank Limited,301168-104,"1,731,284.00",
DFID,DFID,04/08/2020,Project delivery costs – supplier services,East and Central Africa,Crown Agents Bank Limited,204861-101,"42,305.09",
DFID,DFID,19/08/2020,Project delivery costs – supplier services,East and Central Africa,Crown Agents Bank Limited,300427-102,"530,000.00",
DFID,DFID,20/08/2020,Fund monies to be managed and dispersed by the supplier,East and Central Africa,Crown Agents Bank Limited,300427-103,"94,575.00",
DFID,DFID,06/08/2020,Bank Charges/Services,Group Operations,Crown Agents Bank Limited,204664-101,"1,050.00",
DFID,DFID,31/08/2020,Fund monies to be managed and dispersed by the supplier,Climate and Environment Division,Crown Agents Bank Limited,202745-104,"183,580.54",
DFID,DFID,14/08/2020,Aid Programme - Joint programme contribution,Research and Evidence Division,Crown Agents Bank Limited,301168-105,"4,200,000.00",
DFID,DFID,20/08/2020,Fund monies to be managed and dispersed by the supplier,Research and Evidence Division,Crown Agents Bank Limited,204415-103,"24,296.00",
DFID,DFID,20/08/2020,Fund monies to be managed and dispersed by the supplier,Research and Evidence Division,Crown Agents Bank Limited,204415-103,"45,000.00",
DFID,DFID,20/08/2020,Fund monies to be managed and dispersed by the supplier,Research and Evidence Division,Crown Agents Bank Limited,204415-103,"12,205.00",
DFID,DFID,20/08/2020,Fund monies to be managed and dispersed by the supplier,Research and Evidence Division,Crown Agents Bank Limited,204415-103,"138,773.40",
DFID,DFID,20/08/2020,Fund monies to be managed and dispersed by the supplier,Research and Evidence Division,Crown Agents Bank Limited,204415-103,"15,951.60",
DFID,DFID,20/08/2020,Fund monies to be managed and dispersed by the supplier,Research and Evidence Division,Crown Agents Bank Limited,204415-103,"45,000.00",
DFID,DFID,20/08/2020,Fund monies to be managed and dispersed by the supplier,Research and Evidence Division,Crown Agents Bank Limited,204415-103,"31,297.20",
DFID,DFID,20/08/2020,Fund monies to be managed and dispersed by the supplier,Research and Evidence Division,Crown Agents Bank Limited,204415-103,"37,500.00",
DFID,DFID,20/08/2020,Fund monies to be managed and dispersed by the supplier,Research and Evidence Division,Crown Agents Bank Limited,204415-103,"58,838.00",
DFID,DFID,20/08/2020,Fund monies to be managed and dispersed by the supplier,Research and Evidence Division,Crown Agents Bank Limited,204415-103,"8,435.51",
DFID,DFID,28/08/2020,Aid Programme - Accountable Grant Payments,"Asia, Caribbean and Overseas Territories",Ipas inc,203866-101,"256,226.88",
DFID,DFID,11/08/2020,Subscriptions,Communications Division,Kantar Media,100197-101,"1,414.01",
DFID,DFID,07/08/2020,Aid Programme - Other Financial Aid to Government,Middle East and North Africa Division,PA-Ministry of Finance and Planning,300050-106,"13,000,000.00",
DFID,DFID,26/08/2020,Aid Programme - Voluntary contributions,"Asia, Caribbean and Overseas Territories",UNDP Myanmar,204204-103,"771,335.00",
DFID,DFID,05/08/2020,Project delivery costs – supplier services,Business Solutions Division Level,Empiric Solutions Limited,200002-176,"16,500.00",
DFID,DFID,05/08/2020,Project delivery costs – supplier services,Business Solutions Division Level,Empiric Solutions Limited,200001-101,"20,700.00",
DFID,DFID,31/08/2020,Project delivery costs – supplier services,Business Solutions Division Level,Empiric Solutions Limited,200001-101,"18,900.00",
DFID,DFID,12/08/2020,Contract & Agency Staff,Business Solutions Division Level,LA International Computer Consultants Ltd,200002-113,"1,833.36",
DFID,DFID,27/08/2020,Contract & Agency Staff,Business Solutions Division Level,LA International Computer Consultants Ltd,200002-113,"1,833.36",
DFID,DFID,06/08/2020,Contract & Agency Staff,Business Solutions Division Level,LA International Computer Consultants Ltd,200002-113,"3,666.72",
DFID,DFID,21/08/2020,Contract & Agency Staff,Business Solutions Division Level,LA International Computer Consultants Ltd,200002-113,"1,833.36",
DFID,DFID,18/08/2020,Contract & Agency Staff,Business Solutions Division Level,LA International Computer Consultants Ltd,200002-176,"1,428.00",
DFID,DFID,11/08/2020,Contract & Agency Staff,Business Solutions Division Level,LA International Computer Consultants Ltd,200002-176,"1,428.00",
DFID,DFID,17/08/2020,Aid Programme - Accountable Grant Payments,Economic Development Division,British Asian Trust,204722-106,"89,664.00",
DFID,DFID,17/08/2020,Aid Programme - Accountable Grant Payments,Economic Development Division,British Asian Trust,204722-106,"67,896.00",
DFID,DFID,14/08/2020,Project delivery costs – supplier services,"Asia, Caribbean and Overseas Territories",Abt Britain Ltd,205145-107,"41,922.00",
DFID,DFID,07/08/2020,Project delivery costs – supplier services,"Asia, Caribbean and Overseas Territories",Abt Britain Ltd,205145-107,"30,867.00",
DFID,DFID,25/08/2020,Project delivery costs – supplier services,Middle East and North Africa Division,Abt Britain Ltd,205093-105,"95,622.57",
DFID,DFID,25/08/2020,Project delivery costs – supplier services,Middle East and North Africa Division,Abt Britain Ltd,205093-105,"11,006.94",
DFID,DFID,03/08/2020,Aid Programme - Core contributions,Research and Evidence Division,The Task Force for Global Health Inc.,300342-103,"523,370.00",
DFID,DFID,26/08/2020,Aid Programme - Accountable Grant Payments,"Asia, Caribbean and Overseas Territories","DMP2 James P Grant School of Public Health, BRAC University",204079-101,"261,661.00",
DFID,DFID,04/08/2020,Data Network - land lines,Business Solutions Division Level,RAHA LIMITED (TZS),203329-102,"1,161.73",
DFID,DFID,18/08/2020,Data Network - land lines,Business Solutions Division Level,RAHA LIMITED (TZS),203329-102,"1,158.45",
DFID,DFID,28/08/2020,Project delivery costs – supplier services,Economic Development Division,Imperial College of Science Technology and Medicine,205118-104,"132,421.27",
DFID,DFID,26/08/2020,Data Network - land lines,Business Solutions Division Level,SIMBANET (T) LIMITED,203329-102,"2,229.21",
DFID,DFID,10/08/2020,Other ICT,Business Solutions Division Level,Hewlett Packard Enterprise,200005-163,"26,100.00",
DFID,DFID,10/08/2020,Other ICT,Business Solutions Division Level,Hewlett Packard Enterprise,200005-163,"19,575.00",
DFID,DFID,27/08/2020,Aid Programme - Voluntary contributions,"Humanitarian, Security and Migration Division",United Nation’s Children Fund,300461-104,"1,777,608.47",
DFID,DFID,25/08/2020,Aid Programme - Core contributions,West and Southern Africa,United Nation’s Children Fund,300385-105,"600,000.00",
DFID,DFID,21/08/2020,Aid Programme - Joint programme contribution,Policy Division,United Nation’s Children Fund,301168-103,"2,800,000.00",
DFID,DFID,06/08/2020,Air fares,Policy Division,United Nation’s Children Fund,300468-105,"3,976.49",
DFID,DFID,21/08/2020,Aid Programme - Voluntary contributions,West and Southern Africa,United Nation’s Children Fund,300832-110,"1,500,000.00",
DFID,DFID,17/08/2020,Aid Programme - Core contributions,East and Central Africa,United Nation’s Children Fund,300373-104,"400,000.00",
DFID,DFID,17/08/2020,Data Network - land lines,Business Solutions Division Level,"PT. Indosat Tbk,",203329-102,678.57,
DFID,DFID,13/08/2020,Aid Programme - Accountable Grant Payments,"Asia, Caribbean and Overseas Territories",Accelerator Nepal,203426-111,"5,794.00",
DFID,DFID,24/08/2020,Aid Programme - Accountable Grant Payments,"Asia, Caribbean and Overseas Territories",Accelerator Nepal,203426-111,"2,000.00",
DFID,DFID,27/08/2020,Aid Programme - Accountable Grant Payments,East and Central Africa,Rift Valley Research Ltd,300490-105,"200,559.12",
DFID,DFID,20/08/2020,Project delivery costs – supplier services,Policy Division,ODI Sales Ltd,205288-104,"769,844.35",
DFID,DFID,20/08/2020,Project delivery costs – supplier services,Research and Evidence Division,ODI Sales Ltd,205288-101,"188,041.15",
DFID,DFID,20/08/2020,Project delivery costs – supplier services,West and Southern Africa,SPELK MICRO CONSULT,204918-101,"1,330.09",
DFID,DFID,20/08/2020,Project delivery costs – supplier services,West and Southern Africa,Solgift Consult,204918-101,"1,496.36",
DFID,DFID,13/08/2020,Data Network - land lines,Business Solutions Division Level,Liquid Telecom,203329-102,"4,208.80",
DFID,DFID,13/08/2020,Data Network - land lines,Business Solutions Division Level,Liquid Telecom,200002-121,"1,803.77",
DFID,DFID,19/08/2020,Air fares,Country Programmes Cabinet,UNWFP-UNHAS,204833-101,"8,445.39",
DFID,DFID,14/08/2020,Aid Programme - Accountable Grant Payments,Economic Development Division,Rockefeller Philanthropy Advisors,300452-111,"989,528.00",
DFID,DFID,20/08/2020,Project delivery costs – supplier services,East and Central Africa,Miske Witt & Associate  International,204288-103,"1,118.01",
DFID,DFID,05/08/2020,Storage & Distribution costs,Business Solutions Division Level,Business Solutions (Restore),200002-204,"5,411.21",
DFID,DFID,26/08/2020,Aid Programme - Accountable Grant Payments,East and Central Africa,"Department of Economics, University of Dar es Salaam",204809-108,"126,663.62",
DFID,DFID,20/08/2020,Aid Programme - Accountable Grant Payments,"Humanitarian, Security and Migration Division",The Freedom Fund,300901-104,"125,000.00",
DFID,DFID,11/08/2020,Aid Programme - Accountable Grant Payments,Economic Development Division,Open Government Partnership,300174-101,"482,142.00",
DFID,DFID,11/08/2020,Aid Programme - Accountable Grant Payments,Economic Development Division,Open Government Partnership,300174-104,"29,998.00",
DFID,DFID,24/08/2020,Project delivery costs – supplier services,"Asia, Caribbean and Overseas Territories",EY Ford Rhodes,300435-104,"7,232.00",
DFID,DFID,27/08/2020,Data Network - land lines,Business Solutions Division Level,UA Telecom,203329-102,"3,291.47",
DFID,DFID,07/08/2020,Data Network - land lines,Business Solutions Division Level,UA Telecom,203329-102,"3,311.18",
DFID,DFID,07/08/2020,Data Network - land lines,Business Solutions Division Level,UA Telecom,200002-121,"1,419.08",
DFID,DFID,27/08/2020,Data Network - land lines,Business Solutions Division Level,UA Telecom,200002-121,"1,410.63",
DFID,DFID,07/08/2020,Aid Programme - Voluntary contributions,Economic Development Division,African Tax Administration Forum,300578-104,"61,425.00",
DFID,DFID,24/08/2020,Aid Programme - Voluntary contributions,Economic Development Division,African Tax Administration Forum,300578-104,"132,382.00",
DFID,DFID,19/08/2020,Aid Programme - Other Financial Aid to Government,East and Central Africa,Government of Rwanda  Local Government PFM,204479-105,"254,790.00",
DFID,DFID,27/08/2020,Aid Programme - Accountable Grant Payments,"Asia, Caribbean and Overseas Territories",National Star Foundation,202865-104,"31,325.00",
DFID,DFID,21/08/2020,"Repairs, Maintenance and Alterations – Other Building Costs",Group Operations,David R Boyne Property Solutions Limited,203717-101,"4,200.00",
DFID,DFID,11/08/2020,Hotels - Accommodation only,West and Southern Africa,Supplier Name withheld,300432-105,689.03,
DFID,DFID,04/08/2020,Hotels - Accommodation only,West and Southern Africa,Supplier Name withheld,101622-106,597.40,
DFID,DFID,19/08/2020,Aid Programme - Accountable Grant Payments,Policy Division,PAL Network,204695-110,"125,000.00",
DFID,DFID,28/08/2020,Aid Programme - Accountable Grant Payments,Policy Division,Humanitarian Quality Assurance Initiative,300648-105,"53,000.00",
DFID,DFID,31/08/2020,Aid Programme - Accountable Grant Payments,Middle East and North Africa Division,Stichting International NGO Safety Organisation,204516-111,"271,152.00",
DFID,DFID,21/08/2020,Aid Programme - Accountable Grant Payments,East and Central Africa,Stichting International NGO Safety Organisation,205128-106,"62,500.00",
DFID,DFID,18/08/2020,Project delivery costs – supplier services,Human Resources,Health Management Ltd,100269-136,"1,755.82",
DFID,DFID,17/08/2020,Project delivery costs – supplier services,West and Southern Africa,Eco Dev360 International Limited,300338-104,"5,251.74",
DFID,DFID,11/08/2020,Project delivery costs – supplier services,Group Operations,Indesser,204664-101,600.00,
DFID,DFID,17/08/2020,Aid Programme - Accountable Grant Payments,Economic Development Division,Alliance for Financial Inclusion,203808-111,"126,819.00",
DFID,DFID,19/08/2020,Aid Programme - Accountable Grant Payments,Policy Division,Disability Rights Fund,300778-101,"606,943.00",
DFID,DFID,12/08/2020,Aid Programme - Voluntary contributions,Economic Development Division,FMT,205238-117,"522,347.00",
DFID,DFID,20/08/2020,Aid Programme - Accountable Grant Payments,"Asia, Caribbean and Overseas Territories",Supplier Name withheld,205013-109,"47,842.00",
DFID,DFID,24/08/2020,Data Network - land lines,Business Solutions Division Level,Gilat Telecom Uganda,203329-102,"1,763.17",
DFID,DFID,24/08/2020,Data Network - land lines,Business Solutions Division Level,Gilat Telecom Uganda,200002-121,755.65,
DFID,DFID,24/08/2020,Medical/Health Services,Business Solutions Division Level,AXA Mansard Health,203329-104,"1,325.55",
DFID,DFID,24/08/2020,Medical/Health Services,West and Southern Africa,AXA Mansard Health,100152-114,"3,181.39",
DFID,DFID,24/08/2020,Medical/Health Services,West and Southern Africa,AXA Mansard Health,101622-106,"49,954.47",Medical/Health Services
DFID,DFID,19/08/2020,Medical/Health Services,West and Southern Africa,AXA Mansard Health,101622-106,"1,529.48",
DFID,DFID,07/08/2020,Hotels - Accommodation only,West and Southern Africa,Recipient name withheld,101610-101,739.41,
DFID,DFID,16/08/2020,Travel documentation costs,"Asia, Caribbean and Overseas Territories",Recipient name withheld,101624-101,"1,298.40",
DFID,DFID,05/08/2020,Travel documentation costs,East and Central Africa,Recipient name withheld,300650-106,811.54,
DFID,DFID,26/08/2020,Hotels - Accommodation only,West and Southern Africa,Recipient name withheld,101613-101,"2,100.00",
DFID,DFID,26/08/2020,Hotels - Accommodation only,West and Southern Africa,Recipient name withheld,101613-101,"2,100.00",
DFID,DFID,26/08/2020,Secure Staff Accommodation,West and Southern Africa,Recipient name withheld,101622-105,980.00,
DFID,DFID,14/08/2020,Secure Staff Accommodation,West and Southern Africa,Recipient name withheld,101622-105,"1,600.00",
DFID,DFID,28/08/2020,Secure Staff Accommodation,East and Central Africa,Recipient name withheld,101635-101,"2,443.87",
DFID,DFID,19/08/2020,Secure Staff Accommodation,East and Central Africa,Recipient name withheld,101635-101,"3,490.91",
DFID,DFID,04/08/2020,Secure Staff Accommodation,Central Department Division,Recipient name withheld,100279-104,"2,500.00",
DFID,DFID,25/08/2020,Secure Staff Accommodation,Policy Division,Recipient name withheld,204766-105,"3,000.00",
DFID,DFID,16/08/2020,Secure Staff Accommodation,"Asia, Caribbean and Overseas Territories",Recipient name withheld,101603-103,569.86,
DFID,DFID,11/08/2020,Further Education costs,Business Solutions Division Level,Recipient name withheld,200001-101,889.79,
DFID,DFID,25/08/2020,Secure Staff Accommodation,Policy Division,Recipient name withheld,204766-105,"2,835.00",
DFID,DFID,25/08/2020,Secure Staff Accommodation,Policy Division,Recipient name withheld,204766-105,"2,280.49",
DFID,DFID,03/08/2020,Secure Staff Accommodation,Policy Division,Recipient name withheld,204766-105,"2,835.00",
DFID,DFID,11/08/2020,Secure Staff Accommodation,East and Central Africa,Recipient name withheld,101635-101,"1,131.86",
DFID,DFID,13/08/2020,Secure Staff Accommodation,West and Southern Africa,Recipient name withheld,101637-101,"1,193.00",
DFID,DFID,26/08/2020,Secure Staff Accommodation,East and Central Africa,Recipient name withheld,101616-101,"6,225.00",
DFID,DFID,26/08/2020,Secure Staff Accommodation,West and Southern Africa,Recipient name withheld,300782-101,"1,219.69",
DFID,DFID,10/08/2020,Secure Staff Accommodation,East and Central Africa,Recipient name withheld,101634-101,"2,300.00",
DFID,DFID,31/08/2020,Secure Staff Accommodation,West and Southern Africa,Recipient name withheld,101620-101,"1,950.00",
DFID,DFID,12/08/2020,Secure Staff Accommodation,East and Central Africa,Recipient name withheld,101616-102,"2,406.72",
DFID,DFID,27/08/2020,Secure Staff Accommodation,West and Southern Africa,Recipient name withheld,204497-104,"3,000.00",
DFID,DFID,13/08/2020,Secure Staff Accommodation,Central Department Division,Recipient name withheld,100279-103,"1,838.00",
DFID,DFID,26/08/2020,Secure Staff Accommodation,Central Department Division,Recipient name withheld,100279-104,700.00,
DFID,DFID,26/08/2020,Hotels - Accommodation only,Central Department Division,Recipient name withheld,100279-104,560.00,
DFID,DFID,26/08/2020,Secure Staff Accommodation,Central Department Division,Recipient name withheld,100279-104,"1,500.00",
DFID,DFID,28/08/2020,Secure Staff Accommodation,Central Department Division,Recipient name withheld,100279-104,"3,100.00",
DFID,DFID,04/08/2020,Secure Staff Accommodation,West and Southern Africa,Recipient name withheld,101629-101,"2,446.83",
DFID,DFID,03/08/2020,Secure Staff Accommodation,West and Southern Africa,Recipient name withheld,101618-101,626.00,
DFID,DFID,13/08/2020,Air fares,West and Southern Africa,Recipient name withheld,101613-101,"2,141.16",
DFID,DFID,04/08/2020,Secure Staff Accommodation,East and Central Africa,Recipient name withheld,300230-108,"3,240.00",
DFID,DFID,18/08/2020,Secure Staff Accommodation,Research and Evidence Division,Recipient name withheld,202392-111,"2,201.64",
DFID,DFID,12/08/2020,Secure Staff Accommodation,Research and Evidence Division,Recipient name withheld,202392-111,"3,250.04",
DFID,DFID,13/08/2020,Secure Staff Accommodation,Research and Evidence Division,Recipient name withheld,204815-103,"1,270.00",
DFID,DFID,13/08/2020,Secure Staff Accommodation,Research and Evidence Division,Recipient name withheld,204815-103,"1,420.00",
DFID,DFID,16/08/2020,Air fares,West and Southern Africa,Recipient name withheld,101638-101,"2,736.80",
DFID,DFID,13/08/2020,Secure Staff Accommodation,Central Department Division,Recipient name withheld,100279-104,840.00,
DFID,DFID,13/08/2020,Secure Staff Accommodation,Central Department Division,Recipient name withheld,100279-104,"2,184.00",
DFID,DFID,03/08/2020,Secure Staff Accommodation,Central Department Division,Recipient name withheld,100279-104,"1,560.00",
DFID,DFID,26/08/2020,Secure Staff Accommodation,East and Central Africa,Recipient name withheld,101612-101,"2,500.00",
DFID,DFID,03/08/2020,Secure Staff Accommodation,West and Southern Africa,Recipient name withheld,101618-101,542.99,
DFID,DFID,03/08/2020,Secure Staff Accommodation,West and Southern Africa,Recipient name withheld,101618-101,"1,085.97",
DFID,DFID,03/08/2020,Secure Staff Accommodation,"Asia, Caribbean and Overseas Territories",Recipient name withheld,101603-103,600.00,
DFID,DFID,03/08/2020,Secure Staff Accommodation,"Asia, Caribbean and Overseas Territories",Recipient name withheld,101603-103,600.00,
DFID,DFID,03/08/2020,Secure Staff Accommodation,"Asia, Caribbean and Overseas Territories",Recipient name withheld,101603-103,600.00,
DFID,DFID,10/08/2020,Unanalysed/miscellaneous travel,Central Department Division,Recipient name withheld,100279-104,"1,843.00",
DFID,DFID,28/08/2020,Secure Staff Accommodation,West and Southern Africa,Recipient name withheld,101618-101,"1,051.08",
DFID,DFID,28/08/2020,Secure Staff Accommodation,West and Southern Africa,Recipient name withheld,101618-101,"1,051.08",
DFID,DFID,27/08/2020,Secure Staff Accommodation,Middle East and North Africa Division,Recipient name withheld,204055-101,"3,756.67",
DFID,DFID,07/08/2020,Secure Staff Accommodation,West and Southern Africa,Recipient name withheld,101620-101,"1,534.30",
DFID,DFID,12/08/2020,Secure Staff Accommodation,East and Central Africa,Recipient name withheld,204861-109,"2,872.38",
DFID,DFID,10/08/2020,Secure Staff Accommodation,East and Central Africa,Recipient name withheld,101634-101,"2,640.00",
DFID,DFID,27/08/2020,Secure Staff Accommodation,"Asia, Caribbean and Overseas Territories",Recipient name withheld,101605-101,540.00,
DFID,DFID,03/08/2020,Secure Staff Accommodation,"Humanitarian, Security and Migration Division",Recipient name withheld,100049-102,"3,243.70",
DFID,DFID,13/08/2020,Secure Staff Accommodation,"Asia, Caribbean and Overseas Territories",Recipient name withheld,101621-101,"1,600.00",
DFID,DFID,05/08/2020,Secure Staff Accommodation,"Asia, Caribbean and Overseas Territories",Recipient name withheld,101605-101,"7,200.00",
DFID,DFID,03/08/2020,Secure Staff Accommodation,West and Southern Africa,Recipient name withheld,101637-101,"3,720.00",
DFID,DFID,26/08/2020,Secure Staff Accommodation,West and Southern Africa,Recipient name withheld,300782-101,960.00,
DFID,DFID,05/08/2020,Secure Staff Accommodation,West and Southern Africa,Recipient name withheld,300782-101,"1,650.00",
DFID,DFID,05/08/2020,Secure Staff Accommodation,West and Southern Africa,Recipient name withheld,300782-101,"1,560.00",
DFID,DFID,05/08/2020,Secure Staff Accommodation,West and Southern Africa,Recipient name withheld,300782-101,960.00,
DFID,DFID,11/08/2020,Air fares,West and Southern Africa,Recipient name withheld,300782-101,"1,459.04",
DFID,DFID,11/08/2020,Other passenger transport,West and Southern Africa,Recipient name withheld,300782-101,"2,920.46",
DFID,DFID,28/08/2020,Further Education costs,Middle East and North Africa Division,Recipient name withheld,204055-104,"3,555.20",
DFID,DFID,14/08/2020,Secure Staff Accommodation,West and Southern Africa,Recipient name withheld,101622-106,737.23,
DFID,DFID,05/08/2020,Secure Staff Accommodation,"Asia, Caribbean and Overseas Territories",Recipient name withheld,101601-110,"1,400.00",
DFID,DFID,27/08/2020,Training - Course Fees,Economic Development Division,Recipient name withheld,202432-101,"2,200.00",
DFID,DFID,13/08/2020,Secure Staff Accommodation,East and Central Africa,Recipient name withheld,101635-101,"1,185.52",
DFID,DFID,05/08/2020,Secure Staff Accommodation,East and Central Africa,Recipient name withheld,204479-102,862.60,
DFID,DFID,05/08/2020,Secure Staff Accommodation,East and Central Africa,Recipient name withheld,204479-102,"1,572.78",
DFID,DFID,26/08/2020,Secure Staff Accommodation,East and Central Africa,Recipient name withheld,101612-101,"1,969.69",
DFID,DFID,26/08/2020,Secure Staff Accommodation,East and Central Africa,Recipient name withheld,101612-101,979.54,
DFID,DFID,18/08/2020,Air fares,East and Central Africa,Recipient name withheld,101634-101,804.95,
DFID,DFID,05/08/2020,Secure Staff Accommodation,East and Central Africa,Recipient name withheld,202594-101,"1,970.00",
DFID,DFID,14/08/2020,Secure Staff Accommodation,West and Southern Africa,Recipient name withheld,101622-106,996.00,
DFID,DFID,26/08/2020,Secure Staff Accommodation,West and Southern Africa,Recipient name withheld,101618-101,986.00,
DFID,DFID,13/08/2020,Secure Staff Accommodation,West and Southern Africa,Recipient name withheld,101618-101,"1,624.00",
DFID,DFID,17/08/2020,Secure Staff Accommodation,East and Central Africa,Recipient name withheld,101635-101,800.00,
DFID,DFID,19/08/2020,Secure Staff Accommodation,East and Central Africa,Recipient name withheld,101635-101,"2,400.00",
DFID,DFID,04/08/2020,Secure Staff Accommodation,East and Central Africa,Recipient name withheld,205241-110,"1,500.00",
DFID,DFID,13/08/2020,Secure Staff Accommodation,West and Southern Africa,Recipient name withheld,101637-101,600.00,
DFID,DFID,19/08/2020,Secure Staff Accommodation,Middle East and North Africa Division,Recipient name withheld,204055-101,"11,430.00",
DFID,DFID,25/08/2020,Secure Staff Accommodation,Central Department Division,Recipient name withheld,100279-104,599.28,
DFID,DFID,11/08/2020,Secure Staff Accommodation,Central Department Division,Recipient name withheld,100279-104,"1,082.06",
DFID,DFID,18/08/2020,Secure Staff Accommodation,West and Southern Africa,Recipient name withheld,101637-101,715.38,
DFID,DFID,13/08/2020,Secure Staff Accommodation,Middle East and North Africa Division,Recipient name withheld,204055-101,"4,220.71",
DFID,DFID,17/08/2020,Secure Staff Accommodation,East and Central Africa,Recipient name withheld,101625-113,"3,360.00",
DFID,DFID,17/08/2020,Secure Staff Accommodation,West and Southern Africa,Recipient name withheld,101629-101,"5,642.86",
DFID,DFID,05/08/2020,Hotels - Accommodation only,Research and Evidence Division,Recipient name withheld,205288-102,627.00,
DFID,DFID,18/08/2020,Secure Staff Accommodation,West and Southern Africa,Recipient name withheld,101618-101,"1,085.97",
DFID,DFID,05/08/2020,Secure Staff Accommodation,"Asia, Caribbean and Overseas Territories",Recipient name withheld,101605-101,"1,200.00",
DFID,DFID,10/08/2020,Secure Staff Accommodation,"Asia, Caribbean and Overseas Territories",Recipient name withheld,101605-101,"1,000.00",
DFID,DFID,10/08/2020,Secure Staff Accommodation,"Asia, Caribbean and Overseas Territories",Recipient name withheld,101605-101,800.00,
DFID,DFID,18/08/2020,Secure Staff Accommodation,"Asia, Caribbean and Overseas Territories",Recipient name withheld,101601-110,"1,200.00",
DFID,DFID,17/08/2020,Training - Course Fees,Economic Development Division,Recipient name withheld,100275-101,592.96,
DFID,DFID,12/08/2020,Secure Staff Accommodation,Central Department Division,Recipient name withheld,100279-104,823.10,
DFID,DFID,12/08/2020,Secure Staff Accommodation,Central Department Division,Recipient name withheld,100279-104,505.42,
DFID,DFID,12/08/2020,Secure Staff Accommodation,Central Department Division,Recipient name withheld,100279-104,"1,805.05",
DFID,DFID,26/08/2020,Secure Staff Accommodation,East and Central Africa,Recipient name withheld,101635-101,"1,700.00",
DFID,DFID,11/08/2020,Hotels - Accommodation only,West and Southern Africa,Recipient name withheld,101629-101,"2,800.00",
DFID,DFID,12/08/2020,Secure Staff Accommodation,East and Central Africa,Recipient name withheld,101630-101,727.19,
DFID,DFID,12/08/2020,Secure Staff Accommodation,East and Central Africa,Recipient name withheld,101630-101,"2,303.52",
DFID,DFID,20/08/2020,Secure Staff Accommodation,East and Central Africa,Recipient name withheld,101625-112,"3,400.00",
DFID,DFID,25/08/2020,Secure Staff Accommodation,Research and Evidence Division,Recipient name withheld,204815-103,"1,500.00",
DFID,DFID,06/08/2020,Secure Staff Accommodation,East and Central Africa,Recipient name withheld,300650-106,946.80,
DFID,DFID,10/08/2020,Secure Staff Accommodation,East and Central Africa,Recipient name withheld,101625-113,858.84,
DFID,DFID,26/08/2020,Air fares,West and Southern Africa,Recipient name withheld,300782-101,823.58,
